Workbook

Sheet TOT-0116
B2: ANEXO II al Memorándum D.T.E.E. N° 243 / 2017
A4: ENTE NACIONAL REGULADOR
A5: DE LA ELECTRICIDAD
B7: PRESTADOR DE LA FUNCIÓN TÉCNICA DE TRANSPORTE DE ENERGÍA ELÉCTRICA
B9: TRANSBA S.A.
B11: TOTAL DE PENALIZACIONES A APLICAR
B13: 1 | C13: FALSE
B14: Desde el 01 al 31 de enero de 2016
B16: Sanciones duplicadas por tasa de falla > 4 Sal. x año/100km.
C18: 1.- | D18: LÍNEAS | I18: ='LI-01 (3)'!AC42 -> 317571.33
D19: 1.1 -Condiciones climáticas extremas. Resolución ENRE 313/01 | I19: =+'Condiciones Climaticas 313-01'!AM32 -> 140.25
C21: 2.- | D21: CONEXIÓN
D23: 2.1.- | E23: Transformación | I23: ='T-01 (2)'!AC44 -> 27458.32
D25: 2.2.- | E25: Salidas | I25: ='SA-01 (2)'!V43 -> 8990.1
F28: TOTAL | G28: =ROUND(SUM(I18:I26),2) -> 354160
C30: Valores remuneratorios según Acuerdo SEE-ENRE-TRANSBA - 2016-2017

Sheet LI-01 (1)
B2: ='TOT-0116'!B2 -> ANEXO II al Memorándum D.T.E.E. N° 243 / 2017
A4: ENTE NACIONAL REGULADOR
A5: DE LA ELECTRICIDAD
F8: SISTEMA DE TRANSPORTE DE ENERGÍA ELÉCTRICA POR DISTRIBUCIÓN TRONCAL - TRANSBA S.A.
F10: 1.- LÍNEAS
B12: =+'TOT-0116'!B14 -> Desde el 01 al 31 de enero de 2016
F14: $/100 km-h : LÍNEAS 220 kV | G14: 392.94 | L14: FACTOR DE PENALIZACIÓN (CLASE A) K= | M14: =150*'TOT-0116'!B13 -> 150 | N14: =IF(M14=150," ",IF(M14=300,"Coeficiente duplicado por tasa de falla >4 Sal. x año/100 km.","REVISAR COEFICIENTE")) -> 
F15: $/100 km-h : LÍNEAS 132 kV | G15: 375.48 | L15: FACTOR DE PENALIZACIÓN (CLASE B) K= | M15: =50*'TOT-0116'!B13 -> 50 | N15: =IF(M15=50," ",IF(M15=100,"Coeficiente duplicado por tasa de falla >4 Sal. x año/100 km.","REVISAR COEFICIENTE")) -> 
F16: $/100 km-h : LÍNEAS 66 kV | G16: 375.48 | L16: FACTOR DE PENALIZACIÓN (CLASE C) K= | M16: =10*'TOT-0116'!B13 -> 10 | N16: =IF(M16=10," ",IF(M16=20,"Coeficiente duplicado por tasa de falla >4 Sal. x año/100 km.","REVISAR COEFICIENTE")) -> 
C17: 3 | D17: 4 | E17: 5 | F17: 6 | G17: 7 | H17: 8 | I17: 9 | J17: 10 | K17: 11 | L17: 12 | M17: 13 | N17: 14 | O17: 15 | P17: 16 | Q17: 17 | R17: 18 | S17: 19 | T17: 20 | U17: 21 | V17: 22 | W17: 23 | X17: 24 | Y17: 25 | Z17: 26 | AA17: 27 | AB17: 28 | AC17: 29
C18: N° | D18: INDISP | E18: ID EQUIPO | F18: LÍNEAS | G18: U [kV] | H18: Long. [km] | I18: CLASE | J18: $/h | K18: Salida | L18: Entrada | M18: Hs. Indisp | N18: Minutos Indisp. | O18: Tipo Sal.(²) | P18: C.R. % | Q18: K (CLASE) | R18: PENALIZ. PROGRAM. | S18: REDUCC. PROGRAM. | T18: PENALIZACIÓN FORZADA Por Salida 1ras. 3 hs. hs. Restantes | W18: REDUCC. FORZADA Por Salida 1ras. 3 hs. hs. Restantes | Z18: RESTANTE FORZADA | AA18: REDUCC. RESTANTE | AB18: Informó en Térm. | AC18: TOTAL PENALIZAC.
C22: 2 | D22: 297205 | E22: 1421 | F22: ARRECIFES - CAP. SARMIENTO | G22: 66 | H22: 31.89999962 | I22: C | J22: =IF(G22=220,$G$14,IF(G22=132,$G$15,$G$16))*IF(H22>25,H22,25)/100 -> 119.7781186 | K22: 2016-01-04T10:13:00 | L22: 2016-01-04T12:54:00 | M22: =IF(F22="","",(L22-K22)*24) -> 2.683333333 | N22: =IF(F22="","",ROUND((L22-K22)*24*60,0)) -> 161 | O22: F | P22: 0,000 | Q22: =IF(I22="A",$M$14,IF(I22="B",$M$15,$M$16)) -> 10 | R22: =IF(O22="P",ROUND(N22/60,2)*J22*Q22*0.01,"--") -> -- | S22: =IF(O22="RP",ROUND(N22/60,2)*J22*Q22*0.01*P22/100,"--") -> -- | T22: =IF(O22="F",J22*Q22,"--") -> 1197.781186 | U22: =IF(AND(N22>10,O22="F"),J22*Q22*IF(N22>180,3,ROUND((N22)/60,2)),"--") -> 3210.053578 | V22: =IF(AND(O22="F",N22>180),(ROUND(N22/60,2)-3)*J22*Q22*0.1,"--") -> -- | W22: =IF(O22="R",J22*Q22*P22/100,"--") -> -- | X22: =IF(AND(N22>10,O22="R"),Q22*J22*P22/100*IF(N22>180,3,ROUND((N22)/60,2)),"--") -> -- | Y22: =IF(AND(O22="R",N22>180),(ROUND(N22/60,2)-3)*J22*Q22*0.1*P22/100,"--") -> -- | Z22: =IF(O22="RF",ROUND(N22/60,2)*J22*Q22*0.1,"--") -> -- | AA22: =IF(O22="RR",ROUND(N22/60,2)*J22*Q22*0.1*P22/100,"--") -> -- | AB22: SI | AC22: =IF(F22="","",SUM(R22:AA22)*IF(AB22="SI",1,2)) -> 4407.834763
C23: 3 | D23: 297206 | E23: 1543 | F23: PUNTA ALTA - BAHIA BLANCA | G23: 132 | H23: 24.10000038 | I23: C | J23: 93.87 | K23: 2016-01-04T11:21:00 | L23: 2016-01-04T17:10:00 | M23: 5.816666667 | N23: 349 | O23: P | P23: 0,000 | Q23: 10 | R23: 54.63234 | S23: -- | T23: -- | U23: -- | V23: -- | W23: -- | X23: -- | Y23: -- | Z23: -- | AA23: -- | AB23: SI | AC23: 54.63234
C24: 4 | D24: 297207 | E24: 1522 | F24: BALCARCE - MAR DEL PLATA | G24: 132 | H24: 62.90000153 | I24: C | J24: 236.1769257 | K24: 2016-01-04T16:26:00 | L24: 2016-01-04T16:51:00 | M24: 0.4166666666 | N24: 25 | O24: F | P24: 0,000 | Q24: 10 | R24: -- | S24: -- | T24: 2361.769257 | U24: 991.9430881 | V24: -- | W24: -- | X24: -- | Y24: -- | Z24: -- | AA24: -- | AB24: SI | AC24: 3353.712345
C25: 5 | D25: 297208 | E25: 1439 | F25: SAN CLEMENTE - DOLORES | G25: 132 | H25: 102.5999985 | I25: C | J25: 385.2424743 | K25: 2016-01-05T01:35:00 | L25: 2016-01-05T07:44:00 | M25: 6.15 | N25: 369 | O25: F | P25: 0,000 | Q25: 10 | R25: -- | S25: -- | T25: 3852.424743 | U25: 11557.27423 | V25: 1213.513794 | W25: -- | X25: -- | Y25: -- | Z25: -- | AA25: -- | AB25: SI | AC25: 16623.21276
C26: 6 | D26: 297215 | E26: 1520 | F26: LAS ARMAS - DOLORES | G26: 132 | H26: 88.19999695 | I26: C | J26: 331.1733485 | K26: 2016-01-05T01:35:00 | L26: 2016-01-05T02:22:00 | M26: 0.7833333334 | N26: 47 | O26: F | P26: 0,000 | Q26: 10 | R26: -- | S26: -- | T26: 3311.733485 | U26: 2583.152119 | V26: -- | W26: -- | X26: -- | Y26: -- | Z26: -- | AA26: -- | AB26: SI | AC26: 5894.885604
C27: 7 | D27: 297216 | E27: 1437 | F27: DOLORES - CHASCOMUS | G27: 132 | H27: 90.23000336 | I27: C | J27: 338.7956166 | K27: 2016-01-05T01:35:00 | L27: 2016-01-05T02:21:00 | M27: 0.7666666667 | N27: 46 | O27: F | P27: 0,000 | Q27: 10 | R27: -- | S27: -- | T27: 3387.956166 | U27: 2608.726248 | V27: -- | W27: -- | X27: -- | Y27: -- | Z27: -- | AA27: -- | AB27: SI | AC27: 5996.682414
C28: 8 | D28: 297221 | E28: 1434 | F28: 9 DE JULIO - BRAGADO | G28: 66 | H28: 60.93999863 | I28: C | J28: 228.8175068 | K28: 2016-01-05T06:20:00 | L28: 2016-01-05T08:13:00 | M28: 1.883333333 | N28: 113 | O28: P | P28: 0,000 | Q28: 10 | R28: 43.01769129 | S28: -- | T28: -- | U28: -- | V28: -- | W28: -- | X28: -- | Y28: -- | Z28: -- | AA28: -- | AB28: SI | AC28: 43.01769129
C29: 9 | D29: 297222 | E29: 2713 | F29: VILLA LIA "T" - VILLA LÍA | G29: 132 | H29: 8 | I29: C | J29: 93.87 | K29: 2016-01-05T07:17:00 | L29: 2016-01-05T20:07:00 | M29: 12.83333333 | N29: 770 | O29: P | P29: 0,000 | Q29: 10 | R29: 120.43521 | S29: -- | T29: -- | U29: -- | V29: -- | W29: -- | X29: -- | Y29: -- | Z29: -- | AA29: -- | AB29: SI | AC29: 120.43521
C30: 10 | D30: 297224 | E30: 1543 | F30: PUNTA ALTA - BAHIA BLANCA | G30: 132 | H30: 24.10000038 | I30: C | J30: 93.87 | K30: 2016-01-05T10:06:00 | L30: 2016-01-05T17:10:00 | M30: 7.066666667 | N30: 424 | O30: P | P30: 0,000 | Q30: 10 | R30: 66.36609 | S30: -- | T30: -- | U30: -- | V30: -- | W30: -- | X30: -- | Y30: -- | Z30: -- | AA30: -- | AB30: SI | AC30: 66.36609
C31: 11 | D31: 297225 | E31: 3575 | F31: NUEVA CAMPANA - PRAXAIR | G31: 132 | H31: 6.099999905 | I31: C | J31: 93.87 | K31: 2016-01-06T08:45:00 | L31: 2016-01-06T16:41:00 | M31: 7.933333333 | N31: 476 | O31: P | P31: 0,000 | Q31: 10 | R31: 74.43891 | S31: -- | T31: -- | U31: -- | V31: -- | W31: -- | X31: -- | Y31: -- | Z31: -- | AA31: -- | AB31: SI | AC31: 74.43891
C32: 12 | D32: 297227 | E32: 2713 | F32: VILLA LIA "T" - VILLA LÍA | G32: 132 | H32: 8 | I32: C | J32: 93.87 | K32: 2016-01-06T09:25:00 | L32: 2016-01-06T19:55:00 | M32: 10.5 | N32: 630 | O32: P | P32: 0,000 | Q32: 10 | R32: 98.5635 | S32: -- | T32: -- | U32: -- | V32: -- | W32: -- | X32: -- | Y32: -- | Z32: -- | AA32: -- | AB32: SI | AC32: 98.5635
C33: 13 | D33: 297228 | E33: 1543 | F33: PUNTA ALTA - BAHIA BLANCA | G33: 132 | H33: 24.10000038 | I33: C | J33: 93.87 | K33: 2016-01-06T10:51:00 | L33: 2016-01-06T17:08:00 | M33: 6.283333333 | N33: 377 | O33: P | P33: 0,000 | Q33: 10 | R33: 58.95036 | S33: -- | T33: -- | U33: -- | V33: -- | W33: -- | X33: -- | Y33: -- | Z33: -- | AA33: -- | AB33: SI | AC33: 58.95036
C34: 14 | D34: 297229 | E34: 3576 | F34: CAMPANA - PRAXAIR | G34: 132 | H34: 1.100000024 | I34: C | J34: 93.87 | K34: 2016-01-07T07:36:00 | L34: 2016-01-07T17:58:00 | M34: 10.36666667 | N34: 622 | O34: P | P34: 0,000 | Q34: 10 | R34: 97.34319 | S34: -- | T34: -- | U34: -- | V34: -- | W34: -- | X34: -- | Y34: -- | Z34: -- | AA34: -- | AB34: SI | AC34: 97.34319
C35: 15 | D35: 297230 | E35: 1543 | F35: PUNTA ALTA - BAHIA BLANCA | G35: 132 | H35: 24.10000038 | I35: C | J35: 93.87 | K35: 2016-01-07T09:16:00 | L35: 2016-01-07T17:19:00 | M35: 8.05 | N35: 483 | O35: P | P35: 0,000 | Q35: 10 | R35: 75.56535 | S35: -- | T35: -- | U35: -- | V35: -- | W35: -- | X35: -- | Y35: -- | Z35: -- | AA35: -- | AB35: SI | AC35: 75.56535
C36: 16 | D36: 297232 | E36: 2713 | F36: VILLA LIA "T" - VILLA LÍA | G36: 132 | H36: 8 | I36: C | J36: 93.87 | K36: 2016-01-07T09:35:00 | L36: 2016-01-07T18:38:00 | M36: 9.05 | N36: 543 | O36: P | P36: 0,000 | Q36: 10 | R36: 84.95235 | S36: -- | T36: -- | U36: -- | V36: -- | W36: -- | X36: -- | Y36: -- | Z36: -- | AA36: -- | AB36: SI | AC36: 84.95235
C37: 17 | D37: 297234 | E37: 2712 | F37: FICTICIO PICO - T. LAUQUEN | G37: 132 | H37: 77.40000153 | I37: C | J37: 290.6215257 | K37: 2016-01-08T07:08:00 | L37: 2016-01-08T09:40:00 | M37: 2.533333333 | N37: 152 | O37: P | P37: 0,000 | Q37: 10 | R37: 73.52724601 | S37: -- | T37: -- | U37: -- | V37: -- | W37: -- | X37: -- | Y37: -- | Z37: -- | AA37: -- | AB37: SI | AC37: 73.52724601
C38: 18 | D38: 297236 | E38: 2713 | F38: VILLA LIA "T" - VILLA LÍA | G38: 132 | H38: 8 | I38: C | J38: 93.87 | K38: 2016-01-08T08:15:00 | L38: 2016-01-08T12:25:00 | M38: 4.166666667 | N38: 250 | O38: P | P38: 0,000 | Q38: 10 | R38: 39.14379 | S38: -- | T38: -- | U38: -- | V38: -- | W38: -- | X38: -- | Y38: -- | Z38: -- | AA38: -- | AB38: SI | AC38: 39.14379
C39: 19 | D39: 297238 | E39: 3576 | F39: CAMPANA - PRAXAIR | G39: 132 | H39: 1.100000024 | I39: C | J39: 93.87 | K39: 2016-01-08T08:50:00 | L39: 2016-01-08T13:31:00 | M39: 4.683333333 | N39: 281 | O39: P | P39: 0,000 | Q39: 10 | R39: 43.93116 | S39: -- | T39: -- | U39: -- | V39: -- | W39: -- | X39: -- | Y39: -- | Z39: -- | AA39: -- | AB39: SI | AC39: 43.93116
C42: (²) | D42: P - PROGRAMADA ; F - FORZADA | R42: =SUM(R19:R41) -> 930.8671873 | S42: 0 | T42: 14111.66484 | U42: 20951.14926 | V42: 1213.513794 | W42: 0 | X42: 0 | Y42: 0 | Z42: 0 | AA42: 0 | AC42: =ROUND(SUM(AC19:AC41),2) -> 37207.2

Sheet LI-01 (2)
B2: ='TOT-0116'!B2 -> ANEXO II al Memorándum D.T.E.E. N° 243 / 2017
A4: ENTE NACIONAL REGULADOR
A5: DE LA ELECTRICIDAD
F8: SISTEMA DE TRANSPORTE DE ENERGÍA ELÉCTRICA POR DISTRIBUCIÓN TRONCAL - TRANSBA S.A.
F10: 1.- LÍNEAS
B12: =+'TOT-0116'!B14 -> Desde el 01 al 31 de enero de 2016
F14: $/100 km-h : LÍNEAS 220 kV | G14: 392.94 | L14: FACTOR DE PENALIZACIÓN (CLASE A) K= | M14: =150*'TOT-0116'!B13 -> 150 | N14: =IF(M14=150," ",IF(M14=300,"Coeficiente duplicado por tasa de falla >4 Sal. x año/100 km.","REVISAR COEFICIENTE")) -> 
F15: $/100 km-h : LÍNEAS 132 kV | G15: 375.48 | L15: FACTOR DE PENALIZACIÓN (CLASE B) K= | M15: =50*'TOT-0116'!B13 -> 50 | N15: =IF(M15=50," ",IF(M15=100,"Coeficiente duplicado por tasa de falla >4 Sal. x año/100 km.","REVISAR COEFICIENTE")) -> 
F16: $/100 km-h : LÍNEAS 66 kV | G16: 375.48 | L16: FACTOR DE PENALIZACIÓN (CLASE C) K= | M16: =10*'TOT-0116'!B13 -> 10 | N16: =IF(M16=10," ",IF(M16=20,"Coeficiente duplicado por tasa de falla >4 Sal. x año/100 km.","REVISAR COEFICIENTE")) -> 
C17: 3 | D17: 4 | E17: 5 | F17: 6 | G17: 7 | H17: 8 | I17: 9 | J17: 10 | K17: 11 | L17: 12 | M17: 13 | N17: 14 | O17: 15 | P17: 16 | Q17: 17 | R17: 18 | S17: 19 | T17: 20 | U17: 21 | V17: 22 | W17: 23 | X17: 24 | Y17: 25 | Z17: 26 | AA17: 27 | AB17: 28 | AC17: 29
C18: N° | D18: INDISP | E18: ID EQUIPO | F18: LÍNEAS | G18: U [kV] | H18: Long. [km] | I18: CLASE | J18: $/h | K18: Salida | L18: Entrada | M18: Hs. Indisp | N18: Minutos Indisp. | O18: Tipo Sal.(²) | P18: C.R. % | Q18: K (CLASE) | R18: PENALIZ. PROGRAM. | S18: REDUCC. PROGRAM. | T18: PENALIZACIÓN FORZADA Por Salida 1ras. 3 hs. hs. Restantes | W18: REDUCC. FORZADA Por Salida 1ras. 3 hs. hs. Restantes | Z18: RESTANTE FORZADA | AA18: REDUCC. RESTANTE | AB18: Informó en Térm. | AC18: TOTAL PENALIZAC.
AC19: ='LI-01 (1)'!AC42 -> 37207.2
C21: 20 | D21: 297241 | E21: 1543 | F21: PUNTA ALTA - BAHIA BLANCA | G21: 132 | H21: 24.10000038 | I21: C | J21: =IF(G21=220,$G$14,IF(G21=132,$G$15,$G$16))*IF(H21>25,H21,25)/100 -> 93.87 | K21: 2016-01-08T11:01:00 | L21: 2016-01-08T17:23:00 | M21: =IF(F21="","",(L21-K21)*24) -> 6.366666667 | N21: =IF(F21="","",ROUND((L21-K21)*24*60,0)) -> 382 | O21: P | P21: 0,000 | Q21: =IF(I21="A",$M$14,IF(I21="B",$M$15,$M$16)) -> 10 | R21: =IF(O21="P",ROUND(N21/60,2)*J21*Q21*0.01,"--") -> 59.79519 | S21: =IF(O21="RP",ROUND(N21/60,2)*J21*Q21*0.01*P21/100,"--") -> -- | T21: =IF(O21="F",J21*Q21,"--") -> -- | U21: =IF(AND(N21>10,O21="F"),J21*Q21*IF(N21>180,3,ROUND((N21)/60,2)),"--") -> -- | V21: =IF(AND(O21="F",N21>180),(ROUND(N21/60,2)-3)*J21*Q21*0.1,"--") -> -- | W21: =IF(O21="R",J21*Q21*P21/100,"--") -> -- | X21: =IF(AND(N21>10,O21="R"),Q21*J21*P21/100*IF(N21>180,3,ROUND((N21)/60,2)),"--") -> -- | Y21: =IF(AND(O21="R",N21>180),(ROUND(N21/60,2)-3)*J21*Q21*0.1*P21/100,"--") -> -- | Z21: =IF(O21="RF",ROUND(N21/60,2)*J21*Q21*0.1,"--") -> -- | AA21: =IF(O21="RR",ROUND(N21/60,2)*J21*Q21*0.1*P21/100,"--") -> -- | AB21: SI | AC21: =IF(F21="","",SUM(R21:AA21)*IF(AB21="SI",1,2)) -> 59.79519
C22: 21 | D22: 297703 | E22: 1534 | F22: BAHIA BLANCA - NORTE II | G22: 132 | H22: 19 | I22: C | J22: 93.87 | K22: 2016-01-11T09:02:00 | L22: 2016-01-11T13:53:00 | M22: 4.85 | N22: 291 | O22: P | P22: 0,000 | Q22: 10 | R22: 45.52695 | S22: -- | T22: -- | U22: -- | V22: -- | W22: -- | X22: -- | Y22: -- | Z22: -- | AA22: -- | AB22: SI | AC22: 45.52695
C23: 22 | D23: 297712 | E23: 4328 | F23: MAR DE AJO - MAR DEL TUYU - LAS TONINAS | G23: 132 | H23: 29.56999969 | I23: C | J23: 111.0294349 | K23: 2016-01-12T06:11:00 | L23: 2016-01-12T08:19:00 | M23: 2.133333333 | N23: 128 | O23: P | P23: 0,000 | Q23: 10 | R23: 23.64926962 | S23: -- | T23: -- | U23: -- | V23: -- | W23: -- | X23: -- | Y23: -- | Z23: -- | AA23: -- | AB23: SI | AC23: 23.64926962
C24: 23 | D24: 297713 | E24: 1534 | F24: BAHIA BLANCA - NORTE II | G24: 132 | H24: 19 | I24: C | J24: 93.87 | K24: 2016-01-12T07:56:00 | L24: 2016-01-12T13:52:00 | M24: 5.933333333 | N24: 356 | O24: P | P24: 0,000 | Q24: 10 | R24: 55.66491 | S24: -- | T24: -- | U24: -- | V24: -- | W24: -- | X24: -- | Y24: -- | Z24: -- | AA24: -- | AB24: SI | AC24: 55.66491
C25: 24 | D25: 297717 | E25: 1534 | F25: BAHIA BLANCA - NORTE II | G25: 132 | H25: 19 | I25: C | J25: 93.87 | K25: 2016-01-13T08:04:00 | L25: 2016-01-13T13:39:00 | M25: 5.583333333 | N25: 335 | O25: P | P25: 0,000 | Q25: 10 | R25: 52.37946 | S25: -- | T25: -- | U25: -- | V25: -- | W25: -- | X25: -- | Y25: -- | Z25: -- | AA25: -- | AB25: SI | AC25: 52.37946
C26: 25 | D26: 297720 | E26: 1531 | F26: BAHIA BLANCA - PRINGLES | G26: 132 | H26: 102.0899963 | I26: C | J26: 383.3275182 | K26: 2016-01-14T07:49:00 | L26: 2016-01-14T17:09:00 | M26: 9.333333333 | N26: 560 | O26: P | P26: 0,000 | Q26: 10 | R26: 357.6445745 | S26: -- | T26: -- | U26: -- | V26: -- | W26: -- | X26: -- | Y26: -- | Z26: -- | AA26: -- | AB26: SI | AC26: 357.6445745
C27: 26 | D27: 297724 | E27: 3797 | F27: S. A. ARECO - LUJAN | G27: 66 | H27: 49.79999924 | I27: C | J27: 186.9890371 | K27: 2016-01-14T09:35:00 | L27: 2016-01-14T14:17:00 | M27: 4.7 | N27: 282 | O27: P | P27: 0,000 | Q27: 10 | R27: 87.88484745 | S27: -- | T27: -- | U27: -- | V27: -- | W27: -- | X27: -- | Y27: -- | Z27: -- | AA27: -- | AB27: SI | AC27: 87.88484745
C28: 27 | D28: 297727 | E28: 1531 | F28: BAHIA BLANCA - PRINGLES | G28: 132 | H28: 102.0899963 | I28: C | J28: 383.3275182 | K28: 2016-01-15T07:55:00 | L28: 2016-01-15T14:40:00 | M28: 6.75 | N28: 405 | O28: P | P28: 0,000 | Q28: 10 | R28: 258.7460748 | S28: -- | T28: -- | U28: -- | V28: -- | W28: -- | X28: -- | Y28: -- | Z28: -- | AA28: -- | AB28: SI | AC28: 258.7460748
C29: 28 | D29: 297728 | E29: 3797 | F29: S. A. ARECO - LUJAN | G29: 66 | H29: 49.79999924 | I29: C | J29: 186.9890371 | K29: 2016-01-15T09:39:00 | L29: 2016-01-15T14:36:00 | M29: 4.95 | N29: 297 | O29: P | P29: 0,000 | Q29: 10 | R29: 92.55957338 | S29: -- | T29: -- | U29: -- | V29: -- | W29: -- | X29: -- | Y29: -- | Z29: -- | AA29: -- | AB29: SI | AC29: 92.55957338
C30: 29 | D30: 297736 | E30: 1450 | F30: OLAVARRIA - AZUL | G30: 132 | H30: 51.40000153 | I30: C | J30: 192.9967257 | K30: 2016-01-17T06:33:00 | L30: 2016-01-17T08:39:00 | M30: 2.1 | N30: 126 | O30: P | P30: 0,000 | Q30: 10 | R30: 40.5293124 | S30: -- | T30: -- | U30: -- | V30: -- | W30: -- | X30: -- | Y30: -- | Z30: -- | AA30: -- | AB30: SI | AC30: 40.5293124
C31: 30 | D31: 297737 | E31: 5043 | F31: RAMALLO - SIDERAR 1 | G31: 132 | H31: 6.75 | I31: C | J31: 93.87 | K31: 2016-01-17T09:30:00 | L31: 2016-01-17T15:57:00 | M31: 6.45 | N31: 387 | O31: P | P31: 0,000 | Q31: 10 | R31: 60.54615 | S31: -- | T31: -- | U31: -- | V31: -- | W31: -- | X31: -- | Y31: -- | Z31: -- | AA31: -- | AB31: SI | AC31: 0
C32: 31 | D32: 298071 | E32: 4831 | F32: NORTE II - LOS CHAÑARES | G32: 132 | H32: 15.72999954 | I32: C | J32: 93.87 | K32: 2016-01-18T08:29:00 | L32: 2016-01-18T13:33:00 | M32: 5.066666667 | N32: 304 | O32: P | P32: 0,000 | Q32: 10 | R32: 47.59209 | S32: -- | T32: -- | U32: -- | V32: -- | W32: -- | X32: -- | Y32: -- | Z32: -- | AA32: -- | AB32: SI | AC32: 47.59209
C33: 32 | D33: 298073 | E33: 2713 | F33: VILLA LIA "T" - VILLA LÍA | G33: 132 | H33: 8 | I33: C | J33: 93.87 | K33: 2016-01-18T12:25:00 | L33: 2016-01-18T16:54:00 | M33: 4.483333333 | N33: 269 | O33: P | P33: 0,000 | Q33: 10 | R33: 42.05376 | S33: -- | T33: -- | U33: -- | V33: -- | W33: -- | X33: -- | Y33: -- | Z33: -- | AA33: -- | AB33: SI | AC33: 0
C34: 33 | D34: 298074 | E34: 4831 | F34: NORTE II - LOS CHAÑARES | G34: 132 | H34: 15.72999954 | I34: C | J34: 93.87 | K34: 2016-01-19T08:30:00 | L34: 2016-01-19T13:52:00 | M34: 5.366666667 | N34: 322 | O34: P | P34: 0,000 | Q34: 10 | R34: 50.40819 | S34: -- | T34: -- | U34: -- | V34: -- | W34: -- | X34: -- | Y34: -- | Z34: -- | AA34: -- | AB34: SI | AC34: 50.40819
C35: 34 | D35: 298081 | E35: 4831 | F35: NORTE II - LOS CHAÑARES | G35: 132 | H35: 15.72999954 | I35: C | J35: 93.87 | K35: 2016-01-20T08:24:00 | L35: 2016-01-20T13:48:00 | M35: 5.4 | N35: 324 | O35: P | P35: 0,000 | Q35: 10 | R35: 50.6898 | S35: -- | T35: -- | U35: -- | V35: -- | W35: -- | X35: -- | Y35: -- | Z35: -- | AA35: -- | AB35: SI | AC35: 50.6898
C36: 35 | D36: 298083 | E36: 2713 | F36: VILLA LIA "T" - VILLA LÍA | G36: 132 | H36: 8 | I36: C | J36: 93.87 | K36: 2016-01-20T09:47:00 | L36: 2016-01-21T18:41:00 | M36: 32.9 | N36: 1974 | O36: P | P36: 0,000 | Q36: 10 | R36: 308.8323 | S36: -- | T36: -- | U36: -- | V36: -- | W36: -- | X36: -- | Y36: -- | Z36: -- | AA36: -- | AB36: SI | AC36: 0
C37: 36 | D37: 298084 | E37: 1451 | F37: OLAVARRIA VIEJA - OLAVARRIA | G37: 132 | H37: 35.59000015 | I37: C | J37: 133.6333326 | K37: 2016-01-20T11:26:00 | L37: 2016-01-20T13:27:00 | M37: 2.016666667 | N37: 121 | O37: P | P37: 0,000 | Q37: 10 | R37: 26.99393318 | S37: -- | T37: -- | U37: -- | V37: -- | W37: -- | X37: -- | Y37: -- | Z37: -- | AA37: -- | AB37: SI | AC37: 26.99393318
C38: 37 | D38: 298085 | E38: 4831 | F38: NORTE II - LOS CHAÑARES | G38: 132 | H38: 15.72999954 | I38: C | J38: 93.87 | K38: 2016-01-21T08:18:00 | L38: 2016-01-21T13:44:00 | M38: 5.433333333 | N38: 326 | O38: P | P38: 0,000 | Q38: 10 | R38: 50.97141 | S38: -- | T38: -- | U38: -- | V38: -- | W38: -- | X38: -- | Y38: -- | Z38: -- | AA38: -- | AB38: SI | AC38: 50.97141
C39: 38 | D39: 298088 | E39: 4831 | F39: NORTE II - LOS CHAÑARES | G39: 132 | H39: 15.72999954 | I39: C | J39: 93.87 | K39: 2016-01-22T08:19:00 | L39: 2016-01-22T13:54:00 | M39: 5.583333333 | N39: 335 | O39: P | P39: 0,000 | Q39: 10 | R39: 52.37946 | S39: -- | T39: -- | U39: -- | V39: -- | W39: -- | X39: -- | Y39: -- | Z39: -- | AA39: -- | AB39: SI | AC39: 52.37946
C40: 39 | D40: 298090 | E40: 2713 | F40: VILLA LIA "T" - VILLA LÍA | G40: 132 | H40: 8 | I40: C | J40: 93.87 | K40: 2016-01-22T08:26:00 | L40: 2016-01-22T17:46:00 | M40: 9.333333333 | N40: 560 | O40: P | P40: 0,000 | Q40: 10 | R40: =IF(O40="P",ROUND(N40/60,2)*J40*Q40*0.01,"--") -> 87.58071 | S40: -- | T40: -- | U40: -- | V40: -- | W40: -- | X40: -- | Y40: -- | Z40: -- | AA40: -- | AB40: SI | AC40: 0
C42: (²) | D42: P - PROGRAMADA | R42: =SUM(R19:R41) -> 1852.427965 | S42: 0 | T42: 0 | U42: 0 | V42: 0 | W42: 0 | X42: 0 | Y42: 0 | Z42: 0 | AA42: 0 | AC42: =ROUND(SUM(AC19:AC41),2) -> 38560.62

Sheet LI-01 (3)
B2: ='TOT-0116'!B2 -> ANEXO II al Memorándum D.T.E.E. N° 243 / 2017
A4: ENTE NACIONAL REGULADOR
A5: DE LA ELECTRICIDAD
F8: SISTEMA DE TRANSPORTE DE ENERGÍA ELÉCTRICA POR DISTRIBUCIÓN TRONCAL - TRANSBA S.A.
F10: 1.- LÍNEAS
B12: =+'TOT-0116'!B14 -> Desde el 01 al 31 de enero de 2016
F14: $/100 km-h : LÍNEAS 220 kV | G14: 392.94 | L14: FACTOR DE PENALIZACIÓN (CLASE A) K= | M14: =150*'TOT-0116'!B13 -> 150 | N14: =IF(M14=150," ",IF(M14=300,"Coeficiente duplicado por tasa de falla >4 Sal. x año/100 km.","REVISAR COEFICIENTE")) -> 
F15: $/100 km-h : LÍNEAS 132 kV | G15: 375.48 | L15: FACTOR DE PENALIZACIÓN (CLASE B) K= | M15: =50*'TOT-0116'!B13 -> 50 | N15: =IF(M15=50," ",IF(M15=100,"Coeficiente duplicado por tasa de falla >4 Sal. x año/100 km.","REVISAR COEFICIENTE")) -> 
F16: $/100 km-h : LÍNEAS 66 kV | G16: 375.48 | L16: FACTOR DE PENALIZACIÓN (CLASE C) K= | M16: =10*'TOT-0116'!B13 -> 10 | N16: =IF(M16=10," ",IF(M16=20,"Coeficiente duplicado por tasa de falla >4 Sal. x año/100 km.","REVISAR COEFICIENTE")) -> 
C17: 3 | D17: 4 | E17: 5 | F17: 6 | G17: 7 | H17: 8 | I17: 9 | J17: 10 | K17: 11 | L17: 12 | M17: 13 | N17: 14 | O17: 15 | P17: 16 | Q17: 17 | R17: 18 | S17: 19 | T17: 20 | U17: 21 | V17: 22 | W17: 23 | X17: 24 | Y17: 25 | Z17: 26 | AA17: 27 | AB17: 28 | AC17: 29
C18: N° | D18: INDISP | E18: ID EQUIPO | F18: LÍNEAS | G18: U [kV] | H18: Long. [km] | I18: CLASE | J18: $/h | K18: Salida | L18: Entrada | M18: Hs. Indisp | N18: Minutos Indisp. | O18: Tipo Sal.(²) | P18: C.R. % | Q18: K (CLASE) | R18: PENALIZ. PROGRAM. | S18: REDUCC. PROGRAM. | T18: PENALIZACIÓN FORZADA Por Salida 1ras. 3 hs. hs. Restantes | W18: REDUCC. FORZADA Por Salida 1ras. 3 hs. hs. Restantes | Z18: RESTANTE FORZADA | AA18: REDUCC. RESTANTE | AB18: Informó en Térm. | AC18: TOTAL PENALIZAC.
AC19: ='LI-01 (2)'!AC42 -> 38560.62
C22: 41 | D22: 298094 | E22: 3535 | F22: BARADERO - PAPEL PRENSA | G22: 132 | H22: 24 | I22: C | J22: =IF(G22=220,$G$14,IF(G22=132,$G$15,$G$16))*IF(H22>25,H22,25)/100 -> 93.87 | K22: 2016-01-23T14:46:00 | L22: 2016-01-23T16:13:00 | M22: =IF(F22="","",(L22-K22)*24) -> 1.45 | N22: =IF(F22="","",ROUND((L22-K22)*24*60,0)) -> 87 | O22: F | P22: 0,000 | Q22: =IF(I22="A",$M$14,IF(I22="B",$M$15,$M$16)) -> 10 | R22: =IF(O22="P",ROUND(N22/60,2)*J22*Q22*0.01,"--") -> -- | S22: =IF(O22="RP",ROUND(N22/60,2)*J22*Q22*0.01*P22/100,"--") -> -- | T22: =IF(O22="F",J22*Q22,"--") -> 938.7 | U22: =IF(AND(N22>10,O22="F"),J22*Q22*IF(N22>180,3,ROUND((N22)/60,2)),"--") -> 1361.115 | V22: =IF(AND(O22="F",N22>180),(ROUND(N22/60,2)-3)*J22*Q22*0.1,"--") -> -- | W22: =IF(O22="R",J22*Q22*P22/100,"--") -> -- | X22: =IF(AND(N22>10,O22="R"),Q22*J22*P22/100*IF(N22>180,3,ROUND((N22)/60,2)),"--") -> -- | Y22: =IF(AND(O22="R",N22>180),(ROUND(N22/60,2)-3)*J22*Q22*0.1*P22/100,"--") -> -- | Z22: =IF(O22="RF",ROUND(N22/60,2)*J22*Q22*0.1,"--") -> -- | AA22: =IF(O22="RR",ROUND(N22/60,2)*J22*Q22*0.1*P22/100,"--") -> -- | AB22: SI | AC22: =IF(F22="","",SUM(R22:AA22)*IF(AB22="SI",1,2)) -> 2299.815
C23: 42 | D23: 298105 | E23: 1421 | F23: ARRECIFES - CAP. SARMIENTO | G23: 66 | H23: 31.89999962 | I23: C | J23: 119.7781186 | K23: 2016-01-24T07:08:00 | L23: 2016-01-24T13:56:00 | M23: 6.8 | N23: 408 | O23: P | P23: 0,000 | Q23: 10 | R23: 81.44912063 | S23: -- | T23: -- | U23: -- | V23: -- | W23: -- | X23: -- | Y23: -- | Z23: -- | AA23: -- | AB23: SI | AC23: 81.44912063
C24: 43 | D24: 298106 | E24: 3689 | F24: LAPRIDA - LA PAMPITA | G24: 132 | H24: 72.19999695 | I24: C | J24: 271.0965485 | K24: 2016-01-24T18:19:00 | L24: 2016-01-25T20:26:00 | M24: 26.11666667 | N24: 1567 | O24: F | P24: 0,000 | Q24: 10 | R24: -- | S24: -- | T24: 2710.965485 | U24: 8132.896456 | V24: 6267.752202 | W24: -- | X24: -- | Y24: -- | Z24: -- | AA24: -- | AB24: SI | AC24: 17111.61414
C25: 44 | D25: 298107 | E25: 4965 | F25: VALERIA DEL MAR - VILLA GESELL | G25: 132 | H25: 14.27999973 | I25: C | J25: 93.87 | K25: 2016-01-24T23:45:00 | L25: 2016-01-25T00:01:00 | M25: 0.2666666667 | N25: 16 | O25: F | P25: 0,000 | Q25: 10 | R25: -- | S25: -- | T25: 938.7 | U25: 253.449 | V25: -- | W25: -- | X25: -- | Y25: -- | Z25: -- | AA25: -- | AB25: SI | AC25: 1192.149
C26: 45 | D26: 298399 | E26: 1529 | F26: MIRAMAR - NECOCHEA | G26: 132 | H26: 103.2900009 | I26: A | J26: 387.8332954 | K26: 2016-01-25T08:14:00 | L26: 2016-01-25T15:36:00 | M26: 7.366666667 | N26: 442 | O26: F | P26: 0,000 | Q26: 150 | R26: -- | S26: -- | T26: 58174.99432 | U26: 174524.9829 | V26: 25422.47252 | W26: -- | X26: -- | Y26: -- | Z26: -- | AA26: -- | AB26: SI | AC26: 258122.4498
C27: 46 | D27: 298400 | E27: 1544 | F27: PUNTA ALTA - C. PIEDRABUENA | G27: 132 | H27: 25 | I27: C | J27: 93.87 | K27: 2016-01-25T09:28:00 | L27: 2016-01-25T13:50:00 | M27: 4.366666667 | N27: 262 | O27: P | P27: 0,000 | Q27: 10 | R27: 41.02119 | S27: -- | T27: -- | U27: -- | V27: -- | W27: -- | X27: -- | Y27: -- | Z27: -- | AA27: -- | AB27: SI | AC27: 41.02119
C28: 47 | D28: 298407 | E28: 2713 | F28: VILLA LIA "T" - VILLA LÍA | G28: 132 | H28: 8 | I28: C | J28: 93.87 | K28: 2016-01-26T07:41:00 | L28: 2016-01-26T18:37:00 | M28: 10.93333333 | N28: 656 | O28: P | P28: 0,000 | Q28: 10 | R28: 102.59991 | S28: -- | T28: -- | U28: -- | V28: -- | W28: -- | X28: -- | Y28: -- | Z28: -- | AA28: -- | AB28: SI | AC28: 0
C29: 48 | D29: 298410 | E29: 1544 | F29: PUNTA ALTA - C. PIEDRABUENA | G29: 132 | H29: 25 | I29: C | J29: 93.87 | K29: 2016-01-26T09:55:00 | L29: 2016-01-26T13:39:00 | M29: 3.733333333 | N29: 224 | O29: P | P29: 0,000 | Q29: 10 | R29: 35.01351 | S29: -- | T29: -- | U29: -- | V29: -- | W29: -- | X29: -- | Y29: -- | Z29: -- | AA29: -- | AB29: SI | AC29: 35.01351
C30: 49 | D30: 298411 | E30: 1544 | F30: PUNTA ALTA - C. PIEDRABUENA | G30: 132 | H30: 25 | I30: C | J30: 93.87 | K30: 2016-01-27T08:54:00 | L30: 2016-01-27T13:15:00 | M30: 4.35 | N30: 261 | O30: P | P30: 0,000 | Q30: 10 | R30: 40.83345 | S30: -- | T30: -- | U30: -- | V30: -- | W30: -- | X30: -- | Y30: -- | Z30: -- | AA30: -- | AB30: SI | AC30: 40.83345
C31: 50 | D31: 298414 | E31: 1544 | F31: PUNTA ALTA - C. PIEDRABUENA | G31: 132 | H31: 25 | I31: C | J31: 93.87 | K31: 2016-01-28T08:36:00 | L31: 2016-01-28T13:18:00 | M31: 4.7 | N31: 282 | O31: P | P31: 0,000 | Q31: 10 | R31: 44.1189 | S31: -- | T31: -- | U31: -- | V31: -- | W31: -- | X31: -- | Y31: -- | Z31: -- | AA31: -- | AB31: SI | AC31: 44.1189
C32: 51 | D32: 298416 | E32: 1544 | F32: PUNTA ALTA - C. PIEDRABUENA | G32: 132 | H32: 25 | I32: C | J32: 93.87 | K32: 2016-01-29T08:53:00 | L32: 2016-01-29T13:23:00 | M32: 4.5 | N32: 270 | O32: P | P32: 0,000 | Q32: 10 | R32: 42.2415 | S32: -- | T32: -- | U32: -- | V32: -- | W32: -- | X32: -- | Y32: -- | Z32: -- | AA32: -- | AB32: SI | AC32: 42.2415
J33: 93.87 | P33: =IF(F33="","","--") ->  | Q33: 10 | R33: -- | S33: -- | T33: -- | U33: -- | V33: -- | W33: -- | X33: -- | Y33: -- | Z33: -- | AA33: -- | AB33: =IF(F33="","","SI") -> 
J34: 93.87 | Q34: 10 | R34: -- | S34: -- | T34: -- | U34: -- | V34: -- | W34: -- | X34: -- | Y34: -- | Z34: -- | AA34: --
J35: 93.87 | Q35: 10 | R35: -- | S35: -- | T35: -- | U35: -- | V35: -- | W35: -- | X35: -- | Y35: -- | Z35: -- | AA35: --
J36: 93.87 | Q36: 10 | R36: -- | S36: -- | T36: -- | U36: -- | V36: -- | W36: -- | X36: -- | Y36: -- | Z36: -- | AA36: --
J37: 93.87 | Q37: 10 | R37: -- | S37: -- | T37: -- | U37: -- | V37: -- | W37: -- | X37: -- | Y37: -- | Z37: -- | AA37: --
J38: 93.87 | Q38: 10 | R38: -- | S38: -- | T38: -- | U38: -- | V38: -- | W38: -- | X38: -- | Y38: -- | Z38: -- | AA38: --
J39: 93.87 | Q39: 10 | R39: -- | S39: -- | T39: -- | U39: -- | V39: -- | W39: -- | X39: -- | Y39: -- | Z39: -- | AA39: --
J40: 93.87 | Q40: 10 | R40: =IF(O40="P",ROUND(N40/60,2)*J40*Q40*0.01,"--") -> -- | S40: -- | T40: -- | U40: -- | V40: -- | W40: -- | X40: -- | Y40: -- | Z40: -- | AA40: --
C42: (²) | D42: P - PROGRAMADA ; F - FORZADA | R42: =SUM(R19:R41) -> 387.2775806 | S42: 0 | T42: 62763.3598 | U42: 184272.4434 | V42: 31690.22472 | W42: 0 | X42: 0 | Y42: 0 | Z42: 0 | AA42: 0 | AC42: =ROUND(SUM(AC19:AC41),2) -> 317571.33

Sheet Condiciones Climaticas 313-01
B2: =+'TOT-0116'!B2 -> ANEXO II al Memorándum D.T.E.E. N° 243 / 2017
A4: ENTE NACIONAL REGULADOR
A5: DE LA ELECTRICIDAD
F10: SISTEMA DE TRANSPORTE DE ENERGÍA ELÉCTRICA POR DISTRIBUCIÓN TRONCAL - TRANSBA S.A.
F12: 1.1 - Indisponibilidades de LAT causadas por condiciones climáticas extremas. Resolución ENRE 313/01
B15: =+'TOT-0116'!B14 -> Desde el 01 al 31 de enero de 2016
F17: $/100 km-h : LINEAS 220 kV | G17: 392.94 | T17: FORMULAS UTILIZADAS PARA EL CALCULO | AI17: FORMULAS UTILIZADAS PARA EL CALCULO
F18: $/100 km-h : LINEAS 132 kV | G18: 375.48 | T18: DE LAS SANCIONES SEGÚN REGIMEN NORMAL, | AI18: DE SANCION SEGÚN REGIMEN NORMAL para
F19: $/100 km-h : LINEAS 66 kV | G19: 375.48
T20: PARA UN TIEMPO Tst= Tdt+Trt | AI20: el tiempo real de indisponibilidad TI
D21: orden | E21: N° | F21: LÍNEAS | G21: U [kV] | H21: Long. [km] | I21: CL | J21: K | K21: $/h | L21: Salida | M21: Entrada | N21: Hs. Indisp. | O21: Mtos. Indisp. | P21: Tipo Sal.(²) | Q21: Rest. % | R21: R.D. | S21: AUT. | T21: PENALIZACIÓN FORZADA Por Salida 1ras 3 hs. hs. Restantes | W21: PC en Tst | X21: Informó en Térm. | Y21: N° de estruc. caidas | Z21: Td [hs] | AA21: Tf [hs] | AB21: fp | AC21: Tdt + Tf [hs] | AD21: Trt [hs] | AE21: Tst=Tdt+Trt [hs] | AF21: Tst [min] | AG21: alfa | AH21: beta | AI21: PENALIZACIÓN FORZADA Por Salida 1ras 3 hs. hs. Restantes | AL21: TOTAL REGIMEN NORMAL (en Ti) | AM21: TOTAL PENALIZAC.
C24: EVENTO | D24: 1 | E24: 40 | F24: LAS ARMAS - DOLORES | G24: 132 | H24: 88.19999695 | I24: C | J24: 10 | K24: =IF(G24=220,$G$17,IF(G24=132,$G$18,$G$19)*IF(H24>25,H24,25)/100) -> 331.1733485 | L24: 2016-01-22T17:37:00 | M24: 2016-01-25T14:47:00 | N24: =IF(F24="","",(M24-L24)*24) -> 69.16666667 | O24: =IF(F24="","",ROUND((M24-L24)*24*60,0)) -> 4150 | P24: F | Q24: =IF(F24="","","--") -> -- | R24: =IF(F24="","","NO") -> NO | S24: =IF(F24="","",IF(OR(P24="P",P24="RP"),"--","NO")) -> NO | T24: =IF(AND(P24="F",S24="NO"),K24*J24*IF(R24="SI",1.2,1),"--") -> 3311.733485 | U24: =IF(AND(P24="F",AF24>=10),K24*J24*IF(R24="SI",1.2,1)*IF(AF24<=180,ROUND(AF24/60,2),3),"--") -> 9935.200456 | V24: =IF(AND(P24="F",AF24>180),(ROUND(AF24/60,2)-3)*K24*J24*0.1*IF(R24="SI",1.2,1),"--") -> 50669.52233 | W24: =IF(F24="","",SUM(T24:V24)*IF(X24="SI",1,2)) -> 63916.45627 | X24: =IF(F24="","","SI") -> SI | Y24: 5 | Z24: =IF(F24="","",IF(Y24<=10,48,72)) -> 48 | AA24: 0 | AB24: =IF(F24="","",0.9) -> 0.9 | AC24: =IF(F24="","",Z24+AA24) -> 48 | AD24: =IF(F24="","",AB24*24*Y24) -> 108 | AE24: =IF(F24="","",AD24+AC24) -> 156 | AF24: =AE24*60 -> 9360 | AG24: =LOG(W24)/LOG(AD24) -> 2.36331098 | AH24: =1/(2*Y24) -> 0.1 | AI24: =IF(AND(P24="F",S24="NO"),K24*J24*IF(R24="SI",1.2,1),"--") -> 3311.733485 | AJ24: =IF(AND(P24="F",O24>=10),K24*J24*IF(R24="SI",1.2,1)*IF(O24<=180,ROUND(O24/60,2),3),"--") -> 9935.200456 | AK24: =IF(AND(P24="F",O24>180),(ROUND(O24/60,2)-3)*K24*J24*0.1*IF(R24="SI",1.2,1),"--") -> 21913.74047 | AL24: =IF(F24="","",SUM(AI24:AK24)*IF(X24="SI",1,2)) -> 35160.67441 | AM24: =IF(F24=""," ",IF(N24<=AC24,0,(IF(N24>AE24,AL24,(N24-AC24)^AG24*1/(1-AH24*(N24-AE24)))))) -> 140.2504158
Z25: =IF(F25="","",IF(#REF!<=#REF!,0,IF(Y25<=10,48,72))) ->  | AB25: =IF(F25="","",IF(#REF!<=#REF!,1,0.9)) ->  | AC25: =IF(F25="","",IF(#REF!<=#REF!,#REF!+AA25,Z25+AA25)) ->  | AD25: =IF(F25="","",IF(#REF!<=#REF!,AB25*Y25*24,AB25*Y25*24)) -> 
Z26: =IF(F26="","",IF(N25<=AE25,0,IF(Y26<=10,48,72))) ->  | AB26: =IF(F26="","",IF(N25<=AE25,1,0.9)) ->  | AC26: =IF(F26="","",IF(N25<=AE25,N25+AA26,Z26+AA26)) ->  | AD26: =IF(F26="","",IF(N25<=AE25,AB26*Y26*24,AB26*Y26*24)) -> 
Z27: =IF(F27="","",IF(Y27<=10,48,72)) ->  | AB27: =IF(F27="","",0.9) ->  | AC27: =IF(F27="","",Z27+AA27) ->  | AD27: =IF(F27="","",AB27*24*Y27) -> 
Z28: =IF(F28="","",IF(N27<=AE27,0,IF(Y28<=10,48,72))) ->  | AB28: =IF(F28="","",IF(N27<=AE27,1,0.9)) ->  | AC28: =IF(F28="","",IF(N27<=AE27,N27+AA28,Z28+AA28)) ->  | AD28: =IF(F28="","",IF(N27<=AE27,AB28*Y28*24,AB28*Y28*24)) -> 
Z29: =IF(F29="","",IF(N28<=AE28,0,IF(Y29<=10,48,72))) ->  | AB29: =IF(F29="","",IF(N28<=AE28,1,0.9)) ->  | AC29: =IF(F29="","",IF(N28<=AE28,N28+AA29,Z29+AA29)) ->  | AD29: =IF(F29="","",IF(N28<=AE28,AB29*Y29*24,AB29*Y29*24)) -> 
Z30: =IF(F30="","",IF(N29<=AE29,0,IF(Y30<=10,48,72))) ->  | AB30: =IF(F30="","",IF(N29<=AE29,1,0.9)) ->  | AC30: =IF(F30="","",IF(N29<=AE29,N29+AA30,Z30+AA30)) ->  | AD30: =IF(F30="","",IF(N29<=AE29,AB30*Y30*24,AB30*Y30*24)) -> 
T32: =SUM(T22:T31) -> 3311.733485 | U32: =SUM(U22:U31) -> 9935.200456 | V32: =SUM(V22:V31) -> 50669.52233 | AI32: =SUM(AI22:AI31) -> 3311.733485 | AJ32: =SUM(AJ22:AJ31) -> 9935.200456 | AK32: =SUM(AK22:AK31) -> 21913.74047 | AM32: =ROUND(SUM(AM22:AM31),2) -> 140.25
E33: Td: | F33: hasta 10 estructuras caídas, Td=48hs, si no 72 horas.
E34: Tr: | F34: 24 horas por estructura caída.
E35: Tdt: | F35: será igual a Tind. o a Td, dependiendo de si el Ti fue menor o no al Tst.
E36: fp : | F36: igual a 0,9 o 1 p/ Cond. Climáticas Ext. e igual a 1 p/ Atentados.

Sheet T-01 (1)
B2: ='TOT-0116'!B2 -> ANEXO II al Memorándum D.T.E.E. N° 243 / 2017
A4: ENTE NACIONAL REGULADOR
A5: DE LA ELECTRICIDAD
F8: SISTEMA DE TRANSPORTE DE ENERGÍA ELÉCTRICA POR DISTRIBUCIÓN TRONCAL - TRANSBA S.A.
F10: 2.- CONEXIÓN
F12: 2.1.- Transformación
B14: ='TOT-0116'!B14 -> Desde el 01 al 31 de enero de 2016
F16: Por Transformador por MVA $ = | I16: 1.31
F17: Coeficiente de penalización por salida forzada = | I17: =60*'TOT-0116'!B13 -> 60 | K17: =IF(I17=60," ",IF(I17=120," Coeficiente duplicado por tasa de falla >4 Sal. x año/100 km."," REVISAR COEFICIENTE")) -> 
C18: 3 | D18: 4 | E18: 5 | F18: 6 | G18: 7 | H18: 8 | I18: 9 | J18: 10 | K18: 11 | L18: 12 | M18: 13 | N18: 14 | O18: 15 | P18: 16 | Q18: 17 | R18: 18 | S18: 19 | T18: 20 | U18: 21 | V18: 22 | W18: 23 | X18: 24 | Y18: 25 | Z18: 26 | AA18: 27 | AB18: 28 | AC18: 29
C19: N° | D19: INDISP | E19: ID EQUIPO | F19: ESTACIÓN TRANSFORMADORA | G19: EQUIPO | H19: POT. [MVA] | I19: U [kV] | J19: $/h | K19: Salida | L19: Entrada | M19: Hs Indisp. | N19: Minutos. Indisp. | O19: Tipo Sal.(²) | P19: AUT. | Q19: C.R. % | R19: E.N.S. | S19: K (P y ENS) | T19: PENALIZ. PROGRAM. | U19: REDUCC. PROGRAM. | V19: PENALIZACIÓN FORZADA Por Salida hs. Restantes | X19: REDUCC. FORZADA Por Salida hs. Restantes | Z19: RESTANTE FORZADA | AA19: REDUCC. RESTANTE | AB19: Informó en Térm. | AC19: TOTAL PENALIZAC.
C23: 53 | D23: 297223 | E23: 2069 | F23: VILLA LIA | G23: Autotrafo | H23: 150 | I23: 220/132/13,2 | J23: =H23*$I$16 -> 196.5 | K23: 2016-01-05T07:19:00 | L23: 2016-01-05T20:07:00 | M23: =IF(F23="","",(L23-K23)*24) -> 12.8 | N23: =IF(F23="","",ROUND((L23-K23)*24*60,0)) -> 768 | O23: P | P23: =IF(F23="","",IF(OR(O23="P",O23="RP"),"--","NO")) -> -- | Q23: 0,000 | R23: =IF(F23="","","NO") -> NO | S23: =$I$17*IF(OR(O23="P",O23="RP"),0.1,1)*IF(R23="SI",1,0.1) -> 0.6 | T23: =IF(O23="P",J23*S23*ROUND(N23/60,2),"--") -> 1509.12 | U23: =IF(O23="RP",J23*S23*ROUND(N23/60,2)*Q23/100,"--") -> -- | V23: =IF(AND(O23="F",P23="NO"),J23*S23,"--") -> -- | W23: =IF(O23="F",J23*S23*ROUND(N23/60,2),"--") -> -- | X23: =IF(AND(O23="R",P23="NO"),J23*S23*Q23/100,"--") -> -- | Y23: =IF(O23="R",J23*S23*ROUND(N23/60,2)*Q23/100,"--") -> -- | Z23: =IF(O23="RF",J23*S23*ROUND(N23/60,2),"--") -> -- | AA23: =IF(O23="RR",J23*S23*ROUND(N23/60,2)*Q23/100,"--") -> -- | AB23: SI | AC23: =IF(F23="","",SUM(T23:AA23)*IF(AB23="SI",1,2)*IF(AND(Q23<>"0,000",O23="RF"),Q23/100,1)) -> 1509.12
C24: 54 | D24: 297226 | E24: 2069 | F24: VILLA LIA | G24: Autotrafo | H24: 150 | I24: 220/132/13,2 | J24: 196.5 | K24: 2016-01-06T09:25:00 | L24: 2016-01-06T19:55:00 | M24: 10.5 | N24: 630 | O24: P | P24: -- | Q24: 0,000 | R24: NO | S24: 0.6 | T24: 1237.95 | U24: -- | V24: -- | W24: -- | X24: -- | Y24: -- | Z24: -- | AA24: -- | AB24: SI | AC24: 1237.95
C25: 55 | D25: 297231 | E25: 2069 | F25: VILLA LIA | G25: Autotrafo | H25: 150 | I25: 220/132/13,2 | J25: 196.5 | K25: 2016-01-07T09:35:00 | L25: 2016-01-07T18:38:00 | M25: 9.05 | N25: 543 | O25: P | P25: -- | Q25: 0,000 | R25: NO | S25: 0.6 | T25: 1066.995 | U25: -- | V25: -- | W25: -- | X25: -- | Y25: -- | Z25: -- | AA25: -- | AB25: SI | AC25: 1066.995
C26: 56 | D26: 297233 | E26: 5386 | F26: SALTO | G26: TRAFO 2 | H26: 30 | I26: 132/33/13,2 | J26: 39.3 | K26: 2016-01-07T10:25:00 | L26: 2016-01-07T17:04:00 | M26: 6.65 | N26: 399 | O26: P | P26: -- | Q26: 0,000 | R26: NO | S26: 0.6 | T26: 156.807 | U26: -- | V26: -- | W26: -- | X26: -- | Y26: -- | Z26: -- | AA26: -- | AB26: SI | AC26: 156.807
C27: 57 | D27: 297235 | E27: 2069 | F27: VILLA LIA | G27: Autotrafo | H27: 150 | I27: 220/132/13,2 | J27: 196.5 | K27: 2016-01-08T08:15:00 | L27: 2016-01-08T12:25:00 | M27: 4.166666667 | N27: 250 | O27: P | P27: -- | Q27: 0,000 | R27: NO | S27: 0.6 | T27: 491.643 | U27: -- | V27: -- | W27: -- | X27: -- | Y27: -- | Z27: -- | AA27: -- | AB27: SI | AC27: 0
C28: 58 | D28: 297237 | E28: 5386 | F28: SALTO | G28: TRAFO 2 | H28: 30 | I28: 132/33/13,2 | J28: 39.3 | K28: 2016-01-08T08:49:00 | L28: 2016-01-08T11:53:00 | M28: 3.066666667 | N28: 184 | O28: P | P28: -- | Q28: 0,000 | R28: NO | S28: 0.6 | T28: 72.3906 | U28: -- | V28: -- | W28: -- | X28: -- | Y28: -- | Z28: -- | AA28: -- | AB28: SI | AC28: 72.3906
C29: 59 | D29: 297239 | E29: 2510 | F29: URBANA BBCA | G29: Trafo 1 | H29: 40 | I29: 132/33/13,2 | J29: 52.4 | K29: 2016-01-08T09:39:00 | L29: 2016-01-08T17:45:00 | M29: 8.1 | N29: 486 | O29: P | P29: -- | Q29: 0,000 | R29: NO | S29: 0.6 | T29: 254.664 | U29: -- | V29: -- | W29: -- | X29: -- | Y29: -- | Z29: -- | AA29: -- | AB29: SI | AC29: 254.664
C30: 60 | D30: 297704 | E30: 4676 | F30: COLON | G30: TRAFO 1 | H30: 30 | I30: 132/22/13,2 | J30: 39.3 | K30: 2016-01-11T18:55:00 | L30: 2016-01-11T20:03:00 | M30: 1.133333333 | N30: 68 | O30: F | P30: NO | Q30: 0,000 | R30: SI | S30: 60 | T30: -- | U30: -- | V30: 2358 | W30: 2664.54 | X30: -- | Y30: -- | Z30: -- | AA30: -- | AB30: SI | AC30: 5022.54
C31: 61 | D31: 297779 | E31: 4676 | F31: COLON | G31: TRAFO 1 | H31: 30 | I31: 132/33/13,2 | J31: 39.3 | K31: 2016-01-11T20:04:00 | L31: 2016-01-12T15:40:00 | M31: 19.6 | N31: 1176 | O31: R | P31: NO | Q31: 40 | R31: NO | S31: 6 | T31: -- | U31: -- | V31: -- | W31: -- | X31: 94.32 | Y31: 1848.672 | Z31: -- | AA31: -- | AB31: SI | AC31: 1942.992
C32: 62 | D32: 297714 | E32: 2297 | F32: OLAVARRIA VIEJA | G32: T2OA | H32: 30 | I32: 132/33/13,2 | J32: 39.3 | K32: 2016-01-12T08:13:00 | L32: 2016-01-12T12:53:00 | M32: 4.666666667 | N32: 280 | O32: P | P32: -- | Q32: 0,000 | R32: NO | S32: 0.6 | T32: 110.1186 | U32: -- | V32: -- | W32: -- | X32: -- | Y32: -- | Z32: -- | AA32: -- | AB32: SI | AC32: 110.1186
C33: 63 | D33: 297718 | E33: 2296 | F33: OLAVARRIA VIEJA | G33: T1OA | H33: 30 | I33: 132/33/13,2 | J33: 39.3 | K33: 2016-01-13T08:19:00 | L33: 2016-01-13T12:03:00 | M33: 3.733333333 | N33: 224 | O33: P | P33: -- | Q33: 0,000 | R33: NO | S33: 0.6 | T33: 87.9534 | U33: -- | V33: -- | W33: -- | X33: -- | Y33: -- | Z33: -- | AA33: -- | AB33: SI | AC33: 87.9534
C34: 64 | D34: 297719 | E34: 5732 | F34: LUJAN II | G34: TRAFO 2 | H34: 30 | I34: 132/33/13,2 | J34: 39.3 | K34: 2016-01-13T11:24:00 | L34: 2016-01-13T13:42:00 | M34: 2.3 | N34: 138 | O34: P | P34: -- | Q34: 0,000 | R34: NO | S34: 0.6 | T34: 54.234 | U34: -- | V34: -- | W34: -- | X34: -- | Y34: -- | Z34: -- | AA34: -- | AB34: SI | AC34: 54.234
C35: 65 | D35: 297723 | E35: 2501 | F35: PUNTA ALTA | G35: Trafo 2 | H35: 15 | I35: 132/33/13,2 | J35: 19.65 | K35: 2016-01-14T09:13:00 | L35: 2016-01-14T17:24:00 | M35: 8.183333333 | N35: 491 | O35: P | P35: -- | Q35: 0,000 | R35: NO | S35: 0.6 | T35: 96.4422 | U35: -- | V35: -- | W35: -- | X35: -- | Y35: -- | Z35: -- | AA35: -- | AB35: SI | AC35: 96.4422
C36: 66 | D36: 297725 | E36: 2483 | F36: LAPRIDA | G36: Trafo 2 | H36: 10 | I36: 132/33/13,2 | J36: 13.1 | K36: 2016-01-14T20:39:00 | L36: 2016-01-14T21:06:00 | M36: 0.4499999999 | N36: 27 | O36: F | P36: NO | Q36: 0,000 | R36: SI | S36: 60 | T36: -- | U36: -- | V36: 786 | W36: 353.7 | X36: -- | Y36: -- | Z36: -- | AA36: -- | AB36: SI | AC36: 1139.7
C37: 66b | D37: 297725 | E37: 2483 | F37: LAPRIDA | G37: Trafo 2 | H37: 10 | I37: 132/33/13,2 | J37: 13.1 | K37: 2016-01-14T21:06:00 | L37: 2016-01-15T01:40:00 | M37: =IF(F37="","",(L37-K37)*24) -> 4.566666667 | N37: =IF(F37="","",ROUND((L37-K37)*24*60,0)) -> 274 | O37: RF | P37: =IF(F37="","",IF(OR(O37="P",O37="RP"),"--","NO")) -> NO | Q37: 0,000 | R37: NO | S37: =$I$17*IF(OR(O37="P",O37="RP"),0.1,1)*IF(R37="SI",1,0.1) -> 6 | T37: =IF(O37="P",J37*S37*ROUND(N37/60,2),"--") -> -- | U37: =IF(O37="RP",J37*S37*ROUND(N37/60,2)*Q37/100,"--") -> -- | V37: =IF(AND(O37="F",P37="NO"),J37*S37,"--") -> -- | W37: =IF(O37="F",J37*S37*ROUND(N37/60,2),"--") -> -- | X37: =IF(AND(O37="R",P37="NO"),J37*S37*Q37/100,"--") -> -- | Y37: =IF(O37="R",J37*S37*ROUND(N37/60,2)*Q37/100,"--") -> -- | Z37: =IF(O37="RF",J37*S37*ROUND(N37/60,2),"--") -> 359.202 | AA37: =IF(O37="RR",J37*S37*ROUND(N37/60,2)*Q37/100,"--") -> -- | AB37: SI | AC37: =IF(F37="","",SUM(T37:AA37)*IF(AB37="SI",1,2)*IF(AND(Q37<>"0,000",O37="RF"),Q37/100,1)) -> 359.202
C38: 67 | D38: 297730 | E38: 5288 | F38: BRAGADO | G38: TRAFO 6 | H38: 15 | I38: 132/33/13,2 | J38: 19.65 | K38: 2016-01-16T07:26:00 | L38: 2016-01-17T19:12:00 | M38: 35.76666667 | N38: 2146 | O38: P | P38: -- | Q38: 0,000 | R38: NO | S38: 0.6 | T38: 421.7283 | U38: -- | V38: -- | W38: -- | X38: -- | Y38: -- | Z38: -- | AA38: -- | AB38: SI | AC38: 421.7283
C39: 68 | D39: 298072 | E39: 2069 | F39: VILLA LIA | G39: Autotrafo | H39: 150 | I39: 220/132/13,2 | J39: 196.5 | K39: 2016-01-18T12:25:00 | L39: 2016-01-18T16:54:00 | M39: 4.483333333 | N39: 269 | O39: P | P39: -- | Q39: 0,000 | R39: NO | S39: 0.6 | T39: 528.192 | U39: -- | V39: -- | W39: -- | X39: -- | Y39: -- | Z39: -- | AA39: -- | AB39: SI | AC39: 0
C40: 69 | D40: 298082 | E40: 2069 | F40: VILLA LIA | G40: Autotrafo | H40: 150 | I40: 220/132/13,2 | J40: 196.5 | K40: 2016-01-20T09:47:00 | L40: 2016-01-21T18:41:00 | M40: 32.9 | N40: 1974 | O40: P | P40: -- | Q40: 0,000 | R40: NO | S40: 0.6 | T40: 3878.91 | U40: -- | V40: -- | W40: -- | X40: -- | Y40: -- | Z40: -- | AA40: -- | AB40: SI | AC40: 0
J41: 0 | Q41: =IF(F41="","","--") ->  | S41: 6 | T41: -- | U41: -- | V41: -- | W41: -- | X41: -- | Y41: -- | Z41: -- | AA41: -- | AB41: =IF(F41="","","SI") -> 
C43: (²) | D43: P - PROGRAMADA ; F - FORZADA ; R - REDUCCIÓN FORZADA ; RF - RESTANTE FORZADA | T43: =SUM(T20:T42) -> 9967.1481 | U43: =SUM(U20:U42) -> 0 | V43: =SUM(V20:V42) -> 3144 | W43: =SUM(W22:W42) -> 3018.24 | X43: =SUM(X20:X42) -> 94.32 | Y43: =SUM(Y22:Y42) -> 1848.672 | Z43: =SUM(Z20:Z42) -> 359.202 | AA43: =SUM(AA22:AA42) -> 0 | AC43: =ROUND(SUM(AC20:AC42),2) -> 13532.84

Sheet T-01 (2)
B2: ='TOT-0116'!B2 -> ANEXO II al Memorándum D.T.E.E. N° 243 / 2017
A4: ENTE NACIONAL REGULADOR
A5: DE LA ELECTRICIDAD
F8: SISTEMA DE TRANSPORTE DE ENERGÍA ELÉCTRICA POR DISTRIBUCIÓN TRONCAL - TRANSBA S.A.
F10: 2.- CONEXIÓN
F12: 2.1.- Transformación
B14: ='TOT-0116'!B14 -> Desde el 01 al 31 de enero de 2016
F16: Por Transformador por MVA $ = | I16: 1.31
F17: Coeficiente de penalización por salida forzada = | I17: =60*'TOT-0116'!B13 -> 60 | K17: =IF(I17=60," ",IF(I17=120," Coeficiente duplicado por tasa de falla >4 Sal. x año/100 km."," REVISAR COEFICIENTE")) -> 
C18: 3 | D18: 4 | E18: 5 | F18: 6 | G18: 7 | H18: 8 | I18: 9 | J18: 10 | K18: 11 | L18: 12 | M18: 13 | N18: 14 | O18: 15 | P18: 16 | Q18: 17 | R18: 18 | S18: 19 | T18: 20 | U18: 21 | V18: 22 | W18: 23 | X18: 24 | Y18: 25 | Z18: 26 | AA18: 27 | AB18: 28 | AC18: 29
C19: N° | D19: INDISP | E19: ID EQUIPO | F19: ESTACIÓN TRANSFORMADORA | G19: EQUIPO | H19: POT. [MVA] | I19: U [kV] | J19: $/h | K19: Salida | L19: Entrada | M19: Hs Indisp. | N19: Minutos. Indisp. | O19: Tipo Sal.(²) | P19: AUT. | Q19: C.R. % | R19: E.N.S. | S19: K (P y ENS) | T19: PENALIZ. PROGRAM. | U19: REDUCC. PROGRAM. | V19: PENALIZACIÓN FORZADA Por Salida hs. Restantes | X19: REDUCC. FORZADA Por Salida hs. Restantes | Z19: RESTANTE FORZADA | AA19: REDUCC. RESTANTE | AB19: Informó en Térm. | AC19: TOTAL PENALIZAC.
AC20: ='T-01 (1)'!AC43 -> 13532.84
C22: 70 | D22: 298086 | E22: 3550 | F22: PETROQUIMICA | G22: Trafo 2 | H22: 40 | I22: 132/33/13,2 | J22: =H22*$I$16 -> 52.4 | K22: 2016-01-21T08:51:00 | L22: 2016-01-21T12:43:00 | M22: =IF(F22="","",(L22-K22)*24) -> 3.866666667 | N22: =IF(F22="","",ROUND((L22-K22)*24*60,0)) -> 232 | O22: P | P22: =IF(F22="","",IF(OR(O22="P",O22="RP"),"--","NO")) -> -- | Q22: 0,000 | R22: =IF(F22="","","NO") -> NO | S22: =$I$17*IF(OR(O22="P",O22="RP"),0.1,1)*IF(R22="SI",1,0.1) -> 0.6 | T22: =IF(O22="P",J22*S22*ROUND(N22/60,2),"--") -> 121.6728 | U22: =IF(O22="RP",J22*S22*ROUND(N22/60,2)*Q22/100,"--") -> -- | V22: =IF(AND(O22="F",P22="NO"),J22*S22,"--") -> -- | W22: =IF(O22="F",J22*S22*ROUND(N22/60,2),"--") -> -- | X22: =IF(AND(O22="R",P22="NO"),J22*S22*Q22/100,"--") -> -- | Y22: =IF(O22="R",J22*S22*ROUND(N22/60,2)*Q22/100,"--") -> -- | Z22: =IF(O22="RF",J22*S22*ROUND(N22/60,2),"--") -> -- | AA22: =IF(O22="RR",J22*S22*ROUND(N22/60,2)*Q22/100,"--") -> -- | AB22: SI | AC22: =IF(F22="","",SUM(T22:AA22)*IF(AB22="SI",1,2)*IF(AND(Q22<>"0,000",O22="RF"),Q22/100,1)) -> 121.6728
C23: 71 | D23: 298087 | E23: 4210 | F23: URBANA BBCA | G23: Trafo 2 | H23: 40 | I23: 132/33/13,2 | J23: 52.4 | K23: 2016-01-21T15:58:00 | L23: 2016-01-22T20:19:00 | M23: 28.35 | N23: 1701 | O23: F | P23: =IF(F23="","",IF(OR(O23="P",O23="RP"),"--","NO")) -> NO | Q23: 0,000 | R23: NO | S23: 6 | T23: -- | U23: -- | V23: 314.4 | W23: 8913.24 | X23: -- | Y23: -- | Z23: -- | AA23: -- | AB23: SI | AC23: =IF(F23="","",SUM(T23:AA23)*IF(AB23="SI",1,2)*IF(AND(Q23<>"0,000",O23="RF"),Q23/100,1)) -> 9227.64
C24: 72 | D24: 298089 | E24: 2069 | F24: VILLA LIA | G24: Autotrafo | H24: 150 | I24: 220/132/13,2 | J24: 196.5 | K24: 2016-01-22T08:26:00 | L24: 2016-01-22T17:46:00 | M24: 9.333333333 | N24: 560 | O24: P | P24: -- | Q24: 0,000 | R24: NO | S24: 0.6 | T24: 1100.007 | U24: -- | V24: -- | W24: -- | X24: -- | Y24: -- | Z24: -- | AA24: -- | AB24: SI | AC24: 0
C25: 73 | D25: 298091 | E25: 3550 | F25: PETROQUIMICA | G25: Trafo 2 | H25: 40 | I25: 132/33/13,2 | J25: 52.4 | K25: 2016-01-22T08:46:00 | L25: 2016-01-22T09:33:00 | M25: 0.7833333334 | N25: 47 | O25: P | P25: -- | Q25: 0,000 | R25: NO | S25: 0.6 | T25: 24.5232 | U25: -- | V25: -- | W25: -- | X25: -- | Y25: -- | Z25: -- | AA25: -- | AB25: SI | AC25: 24.5232
C26: 74 | D26: 298401 | E26: 2296 | F26: OLAVARRIA VIEJA | G26: T1OA | H26: 30 | I26: 132/33/13,2 | J26: 39.3 | K26: 2016-01-25T19:06:00 | L26: 2016-01-25T19:39:00 | M26: 0.55 | N26: 33 | O26: F | P26: NO | Q26: 0,000 | R26: SI | S26: 60 | T26: -- | U26: -- | V26: 2358 | W26: 1296.9 | X26: -- | Y26: -- | Z26: -- | AA26: -- | AB26: SI | AC26: 3654.9
C27: 74b | D27: 298401 | E27: 2296 | F27: OLAVARRIA VIEJA | G27: T1OA | H27: 30 | I27: 132/33/13,2 | J27: 39.3 | K27: 2016-01-25T19:39:00 | L27: 2016-01-25T22:42:00 | M27: =IF(F27="","",(L27-K27)*24) -> 3.05 | N27: =IF(F27="","",ROUND((L27-K27)*24*60,0)) -> 183 | O27: RF | P27: =IF(F27="","",IF(OR(O27="P",O27="RP"),"--","NO")) -> NO | Q27: 0,000 | R27: NO | S27: =$I$17*IF(OR(O27="P",O27="RP"),0.1,1)*IF(R27="SI",1,0.1) -> 6 | T27: =IF(O27="P",J27*S27*ROUND(N27/60,2),"--") -> -- | U27: =IF(O27="RP",J27*S27*ROUND(N27/60,2)*Q27/100,"--") -> -- | V27: =IF(AND(O27="F",P27="NO"),J27*S27,"--") -> -- | W27: =IF(O27="F",J27*S27*ROUND(N27/60,2),"--") -> -- | X27: =IF(AND(O27="R",P27="NO"),J27*S27*Q27/100,"--") -> -- | Y27: =IF(O27="R",J27*S27*ROUND(N27/60,2)*Q27/100,"--") -> -- | Z27: =IF(O27="RF",J27*S27*ROUND(N27/60,2),"--") -> 719.19 | AA27: =IF(O27="RR",J27*S27*ROUND(N27/60,2)*Q27/100,"--") -> -- | AB27: SI | AC27: =IF(F27="","",SUM(T27:AA27)*IF(AB27="SI",1,2)*IF(AND(Q27<>"0,000",O27="RF"),Q27/100,1)) -> 719.19
C28: 75 | D28: 298406 | E28: 2069 | F28: VILLA LIA | G28: Autotrafo | H28: 150 | I28: 220/132/13,2 | J28: 196.5 | K28: 2016-01-26T07:41:00 | L28: 2016-01-26T18:37:00 | M28: 10.93333333 | N28: 656 | O28: P | P28: -- | Q28: 0,000 | R28: NO | S28: 0.6 | T28: 1288.647 | U28: -- | V28: -- | W28: -- | X28: -- | Y28: -- | Z28: -- | AA28: -- | AB28: SI | AC28: 0
C29: 76 | D29: 298415 | E29: 4718 | F29: T. LAUQUEN | G29: T6TL | H29: 30 | I29: 132/33/13,2 | J29: 39.3 | K29: 2016-01-28T08:58:00 | L29: 2016-01-28T16:30:00 | M29: 7.533333333 | N29: 452 | O29: P | P29: -- | Q29: 0,000 | R29: NO | S29: 0.6 | T29: 177.5574 | U29: -- | V29: -- | W29: -- | X29: -- | Y29: -- | Z29: -- | AA29: -- | AB29: SI | AC29: 177.5574
J30: 0 | Q30: =IF(F30="","","--") ->  | S30: 6 | T30: -- | U30: -- | V30: -- | W30: -- | X30: -- | Y30: -- | Z30: -- | AA30: -- | AB30: =IF(F30="","","SI") -> 
J31: 0 | S31: 6 | T31: -- | U31: -- | V31: -- | W31: -- | X31: -- | Y31: -- | Z31: -- | AA31: --
J32: 0 | S32: 6 | T32: -- | U32: -- | V32: -- | W32: -- | X32: -- | Y32: -- | Z32: -- | AA32: --
J33: 0 | S33: 6 | T33: -- | U33: -- | V33: -- | W33: -- | X33: -- | Y33: -- | Z33: -- | AA33: --
J34: 0 | S34: 6 | T34: -- | U34: -- | V34: -- | W34: -- | X34: -- | Y34: -- | Z34: -- | AA34: --
J35: 0 | S35: 6 | T35: -- | U35: -- | V35: -- | W35: -- | X35: -- | Y35: -- | Z35: -- | AA35: --
J36: 0 | S36: 6 | T36: -- | U36: -- | V36: -- | W36: -- | X36: -- | Y36: -- | Z36: -- | AA36: --
J37: 0 | S37: 6 | T37: -- | U37: -- | V37: -- | W37: -- | X37: -- | Y37: -- | Z37: -- | AA37: --
J38: 0 | S38: 6 | T38: -- | U38: -- | V38: -- | W38: -- | X38: -- | Y38: -- | Z38: -- | AA38: --
J39: 0 | S39: 6 | T39: -- | U39: -- | V39: -- | W39: -- | X39: -- | Y39: -- | Z39: -- | AA39: --
J40: 0 | S40: 6 | T40: -- | U40: -- | V40: -- | W40: -- | X40: -- | Y40: -- | Z40: -- | AA40: --
J41: 0 | S41: 6 | T41: -- | U41: -- | V41: -- | W41: -- | X41: -- | Y41: -- | Z41: -- | AA41: --
J42: 0 | S42: 6 | T42: -- | U42: -- | V42: -- | W42: -- | X42: -- | Y42: -- | Z42: -- | AA42: --
C44: (²) | D44: P - PROGRAMADA ; F - FORZADA ; RF - RESTANTE FORZADA | T44: =SUM(T20:T43) -> 2712.4074 | U44: =SUM(U20:U43) -> 0 | V44: =SUM(V20:V43) -> 2672.4 | W44: =SUM(W22:W43) -> 10210.14 | X44: =SUM(X20:X43) -> 0 | Y44: =SUM(Y22:Y43) -> 0 | Z44: =SUM(Z20:Z43) -> 719.19 | AA44: =SUM(AA22:AA43) -> 0 | AC44: =ROUND(SUM(AC20:AC43),2) -> 27458.32

Sheet SA-01 (1)
B2: ='TOT-0116'!B2 -> ANEXO II al Memorándum D.T.E.E. N° 243 / 2017
A4: ENTE NACIONAL REGULADOR
A5: DE LA ELECTRICIDAD
F8: SISTEMA DE TRANSPORTE DE ENERGÍA ELÉCTRICA POR DISTRIBUCIÓN TRONCAL - TRANSBA S.A.
F10: 2.2.- Salidas
B12: ='TOT-0116'!B14 -> Desde el 01 al 31 de enero de 2016
F14: Salida en 220 kV | G14: 34.93 | H14: =60*'TOT-0116'!B13 -> 60 | J14: =IF(H14=60," ",IF(H14=120," Coeficiente duplicado por tasa de falla >4 Sal. x año/100 km."," REVISAR COEFICIENTE")) -> 
F15: Salida en 132 kV o 66 kV = | G15: 17.466 | H15: =50*'TOT-0116'!B13 -> 50 | J15: =IF(H15=50," ",IF(H15=100," Coeficiente duplicado por tasa de falla >4 Sal. x año/100 km."," REVISAR COEFICIENTE")) -> 
F16: Salida en 33 kV | G16: 13.097 | H16: =50*'TOT-0116'!B13 -> 50 | J16: =IF(H16=50," ",IF(H16=100," Coeficiente duplicado por tasa de falla >4 Sal. x año/100 km."," REVISAR COEFICIENTE")) -> 
F17: Salida en 13,2 kV = | G17: 13.097 | H17: =40*'TOT-0116'!B13 -> 40 | J17: =IF(H17=40," ",IF(H17=80," Coeficiente duplicado por tasa de falla >4 Sal. x año/100 km."," REVISAR COEFICIENTE")) -> 
C18: 3 | D18: 4 | E18: 5 | F18: 6 | G18: 7 | H18: 8 | I18: 9 | J18: 10 | K18: 11 | L18: 12 | M18: 13 | N18: 14 | O18: 15 | P18: 16 | Q18: 17 | R18: 18 | S18: 19 | T18: 20 | U18: 21 | V18: 22
C19: N° | D19: INDISP | E19: ID EQUIPO | F19: ESTACIÓN TRANSFORMADORA | G19: EQUIPO | H19: U [kV] | I19: $/h | J19: Salida | K19: Entrada | L19: Hs Indisp. | M19: Minutos. Indisp. | N19: Tipo Sal.(²) | O19: AUT. | P19: K (U) | Q19: PENALIZAC. PROGRAM. | R19: PENALIZACIÓN FORZADA Por Salida hs. Restantes | T19: RESTANTE FORZADA | U19: Informó en Térm. | V19: TOTAL PENALIZAC.
C35: 90 | D35: 297240 | E35: 2516 | F35: ET URBANA BBCA | G35: Alimentador a ET "B" | H35: 33 | I35: =IF(H35=220,$G$14,IF(AND(H35<=132,H35>=66),$G$15,IF(AND(H35<66,H35>=33),$G$16,$G$17))) -> 13.097 | J35: 2016-01-08T09:55:00 | K35: 2016-01-08T17:00:00 | L35: =IF(F35="","",(K35-J35)*24) -> 7.083333333 | M35: =IF(F35="","",ROUND((K35-J35)*24*60,0)) -> 425 | N35: P | O35: =IF(F35="","",IF(OR(N35="P",N35="RP"),"--","NO")) -> -- | P35: =IF(H35=220,$H$14,IF(AND(H35<=132,H35>=66),$H$15,IF(AND(H35<66,H35>13.2),$H$16,$H$17))) -> 50 | Q35: =IF(N35="P",I35*P35*ROUND(M35/60,2)*0.1,"--") -> 463.6338 | R35: =IF(AND(N35="F",O35="NO"),I35*P35,"--") -> -- | S35: =IF(N35="F",I35*P35*ROUND(M35/60,2),"--") -> -- | T35: =IF(N35="RF",I35*P35*ROUND(M35/60,2),"--") -> -- | U35: SI | V35: =IF(F35="","",SUM(Q35:T35)*IF(U35="SI",1,2)*IF(H35="500/220",0,1)) -> 463.6338
C36: 91 | D36: 297242 | E36: 2512 | F36: ET URBANA BBCA | G36: Alimentador a ET ING. WHITE 2 | H36: 33 | I36: 13.097 | J36: 2016-01-08T12:22:00 | K36: 2016-01-08T17:00:00 | L36: 4.633333333 | M36: 278 | N36: P | O36: -- | P36: 50 | Q36: 303.19555 | R36: -- | S36: -- | T36: -- | U36: SI | V36: 303.19555
C37: 92 | D37: 297702 | E37: 2480 | F37: LAS FLORES | G37: Alimentador 2 a Coop. LAS FLORES | H37: 13.19999981 | I37: 13.097 | J37: 2016-01-11T06:24:00 | K37: 2016-01-11T09:13:00 | L37: 2.816666667 | M37: 169 | N37: P | O37: -- | P37: 40 | Q37: 147.73416 | R37: -- | S37: -- | T37: -- | U37: SI | V37: 147.73416
C38: 93 | D38: 297705 | E38: 5060 | F38: COLON | G38: SALIDA C.T. COLON | H38: 13.2 | I38: 13.097 | J38: 2016-01-11T18:55:00 | K38: 2016-01-11T20:13:00 | L38: 1.3 | M38: 78 | N38: F | O38: NO | P38: 40 | Q38: -- | R38: 523.88 | S38: 681.044 | T38: -- | U38: SI | V38: 1204.924
C39: 94 | D39: 297715 | E39: 3577 | F39: PRAXAIR | G39: Alimentador a PRAXAIR | H39: 132 | I39: 17.466 | J39: 2016-01-12T08:48:00 | K39: 2016-01-12T14:54:00 | L39: 6.1 | M39: 366 | N39: P | O39: -- | P39: 50 | Q39: 532.713 | R39: -- | S39: -- | T39: -- | U39: SI | V39: 532.713
I40: 13.097 | P40: 40 | Q40: -- | R40: -- | S40: -- | T40: -- | U40: =IF(F40="","","SI") -> 
C42: (²) | D42: P - PROGRAMADA ; F - FORZADA | Q42: =SUM(Q20:Q41) -> 1447.27651 | R42: =SUM(R20:R41) -> 523.88 | S42: =SUM(S20:S41) -> 681.044 | T42: =SUM(T20:T41) -> 0 | V42: =ROUND(SUM(V20:V41),2) -> 2652.2

Sheet SA-01 (2)
B2: ='TOT-0116'!B2 -> ANEXO II al Memorándum D.T.E.E. N° 243 / 2017
A4: ENTE NACIONAL REGULADOR
A5: DE LA ELECTRICIDAD
F8: SISTEMA DE TRANSPORTE DE ENERGÍA ELÉCTRICA POR DISTRIBUCIÓN TRONCAL - TRANSBA S.A.
F10: 2.2.- Salidas
B12: ='TOT-0116'!B14 -> Desde el 01 al 31 de enero de 2016
F14: Salida en 220 kV | G14: 34.93 | H14: =60*'TOT-0116'!B13 -> 60 | J14: =IF(H14=60," ",IF(H14=120," Coeficiente duplicado por tasa de falla >4 Sal. x año/100 km."," REVISAR COEFICIENTE")) -> 
F15: Salida en 132 kV o 66 kV = | G15: 17.466 | H15: =50*'TOT-0116'!B13 -> 50 | J15: =IF(H15=50," ",IF(H15=100," Coeficiente duplicado por tasa de falla >4 Sal. x año/100 km."," REVISAR COEFICIENTE")) -> 
F16: Salida en 33 kV | G16: 13.097 | H16: =50*'TOT-0116'!B13 -> 50 | J16: =IF(H16=50," ",IF(H16=100," Coeficiente duplicado por tasa de falla >4 Sal. x año/100 km."," REVISAR COEFICIENTE")) -> 
F17: Salida en 13,2 kV = | G17: 13.097 | H17: =40*'TOT-0116'!B13 -> 40 | J17: =IF(H17=40," ",IF(H17=80," Coeficiente duplicado por tasa de falla >4 Sal. x año/100 km."," REVISAR COEFICIENTE")) -> 
C18: 3 | D18: 4 | E18: 5 | F18: 6 | G18: 7 | H18: 8 | I18: 9 | J18: 10 | K18: 11 | L18: 12 | M18: 13 | N18: 14 | O18: 15 | P18: 16 | Q18: 17 | R18: 18 | S18: 19 | T18: 20 | U18: 21 | V18: 22
C19: N° | D19: INDISP | E19: ID EQUIPO | F19: ESTACIÓN TRANSFORMADORA | G19: EQUIPO | H19: U [kV] | I19: $/h | J19: Salida | K19: Entrada | L19: Hs Indisp. | M19: Minutos. Indisp. | N19: Tipo Sal.(²) | O19: AUT. | P19: K (U) | Q19: PENALIZAC. PROGRAM. | R19: PENALIZACIÓN FORZADA Por Salida hs. Restantes | T19: RESTANTE FORZADA | U19: Informó en Térm. | V19: TOTAL PENALIZAC.
V20: ='SA-01 (1)'!V42 -> 2652.2
C23: 96 | D23: 297721 | E23: 2507 | F23: PUNTA ALTA | G23: Alimentador a Coop. PUNTA ALTA 5 | H23: 33 | I23: =IF(H23=220,$G$14,IF(AND(H23<=132,H23>=66),$G$15,IF(AND(H23<66,H23>=33),$G$16,$G$17))) -> 13.097 | J23: 2016-01-14T08:29:00 | K23: 2016-01-14T17:56:00 | L23: =IF(F23="","",(K23-J23)*24) -> 9.45 | M23: =IF(F23="","",ROUND((K23-J23)*24*60,0)) -> 567 | N23: P | O23: =IF(F23="","",IF(OR(N23="P",N23="RP"),"--","NO")) -> -- | P23: =IF(H23=220,$H$14,IF(AND(H23<=132,H23>=66),$H$15,IF(AND(H23<66,H23>13.2),$H$16,$H$17))) -> 50 | Q23: =IF(N23="P",I23*P23*ROUND(M23/60,2)*0.1,"--") -> 618.83325 | R23: =IF(AND(N23="F",O23="NO"),I23*P23,"--") -> -- | S23: =IF(N23="F",I23*P23*ROUND(M23/60,2),"--") -> -- | T23: =IF(N23="RF",I23*P23*ROUND(M23/60,2),"--") -> -- | U23: SI | V23: =IF(F23="","",SUM(Q23:T23)*IF(U23="SI",1,2)*IF(H23="500/220",0,1)) -> 618.83325
C24: 97 | D24: 297722 | E24: 2503 | F24: PUNTA ALTA | G24: Alimentador a P.S. GRUNBEIN 2 | H24: 33 | I24: 13.097 | J24: 2016-01-14T08:35:00 | K24: 2016-01-14T17:55:00 | L24: 9.333333333 | M24: 560 | N24: P | O24: -- | P24: 50 | Q24: 610.97505 | R24: -- | S24: -- | T24: -- | U24: SI | V24: 610.97505
C25: 98 | D25: 297729 | E25: 2503 | F25: PUNTA ALTA | G25: Alimentador a P.S. GRUNBEIN 2 | H25: 33 | I25: 13.097 | J25: 2016-01-15T09:53:00 | K25: 2016-01-15T17:26:00 | L25: 7.55 | M25: 453 | N25: P | O25: -- | P25: 50 | Q25: 494.41175 | R25: -- | S25: -- | T25: -- | U25: SI | V25: 494.41175
C27: 100 | D27: 298075 | E27: 2127 | F27: PERGAMINO | G27: Alimentador a ALFONSO | H27: 33 | I27: 13.097 | J27: 2016-01-19T09:25:00 | K27: 2016-01-19T15:44:00 | L27: 6.316666667 | M27: 379 | N27: P | O27: -- | P27: 50 | Q27: 413.8652 | R27: -- | S27: -- | T27: -- | U27: SI | V27: 413.8652
C28: 101 | D28: 298092 | E28: 2141 | F28: ARRECIFES | G28: Alimentador a SALTO 2 | H28: 33 | I28: 13.097 | J28: 2016-01-22T10:20:00 | K28: 2016-01-22T14:57:00 | L28: 4.616666667 | M28: 277 | N28: P | O28: -- | P28: 50 | Q28: 302.5407 | R28: -- | S28: -- | T28: -- | U28: SI | V28: 302.5407
C29: 102 | D29: 298104 | E29: 2354 | F29: BALCARCE | G29: Alimentador Mc. CAIN | H29: 33 | I29: 13.097 | J29: 2016-01-24T07:06:00 | K29: 2016-01-24T16:24:00 | L29: 9.3 | M29: 558 | N29: P | O29: -- | P29: 50 | Q29: 609.0105 | R29: -- | S29: -- | T29: -- | U29: SI | V29: 609.0105
C30: 103 | D30: 298108 | E30: 2448 | F30: MAR DE AJO | G30: Alimentador 7 a MAR DE AJO | H30: 13.19999981 | I30: 13.097 | J30: 2016-01-24T23:45:00 | K30: 2016-01-25T00:29:00 | L30: 0.7333333333 | M30: 44 | N30: F | O30: NO | P30: 40 | Q30: -- | R30: 523.88 | S30: 382.4324 | T30: -- | U30: SI | V30: 906.3124
C31: 104 | D31: 298109 | E31: 2450 | F31: MAR DE AJO | G31: Alimentador 5 a SAN BERNARDO | H31: 13.19999981 | I31: 13.097 | J31: 2016-01-24T23:45:00 | K31: 2016-01-25T00:14:00 | L31: 0.4833333333 | M31: 29 | N31: F | O31: NO | P31: 40 | Q31: -- | R31: 523.88 | S31: 251.4624 | T31: -- | U31: SI | V31: 775.3424
C32: 105 | D32: 298408 | E32: 2344 | F32: QUEQUEN | G32: Alimentador a LOBERIA.PIERES | H32: 33 | I32: 13.097 | J32: 2016-01-26T09:13:00 | K32: 2016-01-26T10:16:00 | L32: 1.05 | M32: 63 | N32: P | O32: -- | P32: 50 | Q32: 68.75925 | R32: -- | S32: -- | T32: -- | U32: SI | V32: 68.75925
C33: 106 | D33: 298409 | E33: 4988 | F33: CAMPANA III | G33: SALIDA 2 PARQ. IND. | H33: 33 | I33: 13.097 | J33: 2016-01-26T09:41:00 | K33: 2016-01-26T14:28:00 | L33: 4.783333333 | M33: 287 | N33: P | O33: -- | P33: 50 | Q33: 313.0183 | R33: -- | S33: -- | T33: -- | U33: SI | V33: 313.0183
C34: 107 | D34: 298412 | E34: 5106 | F34: CAMPANA III | G34: ALIMENT. A CAMPANA CENTRO | H34: 13.19999981 | I34: 13.097 | J34: 2016-01-27T09:09:00 | K34: 2016-01-27T12:56:00 | L34: 3.783333333 | M34: 227 | N34: P | O34: -- | P34: 40 | Q34: 198.02664 | R34: -- | S34: -- | T34: -- | U34: SI | V34: 198.02664
C36: 109 | D36: 298417 | E36: 2057 | F36: SAN PEDRO | G36: Alimentador a BARADERO 2-32 | H36: 33 | I36: 13.097 | J36: 2016-01-29T09:54:00 | K36: 2016-01-29T12:13:00 | L36: 2.316666667 | M36: 139 | N36: P | O36: -- | P36: 50 | Q36: 151.9252 | R36: -- | S36: -- | T36: -- | U36: SI | V36: 151.9252
C39: 112 | D39: 298211 | E39: 2434 | F39: VILLA GESELL | G39: Alimentador 3 a VILLA GESELL | H39: 13.19999981 | I39: 13.097 | J39: 2016-01-30T07:33:00 | K39: 2016-01-30T19:28:00 | L39: 11.91666667 | M39: 715 | N39: P | O39: -- | P39: 40 | Q39: 624.46496 | R39: -- | S39: -- | T39: -- | U39: SI | V39: 624.46496
C40: 113 | D40: 298218 | E40: 2434 | F40: VILLA GESELL | G40: Alimentador 3 a VILLA GESELL | H40: 13.19999981 | I40: 13.097 | J40: 2016-01-31T07:37:00 | K40: 2016-01-31T12:24:00 | L40: 4.783333333 | M40: 287 | N40: P | O40: -- | P40: 40 | Q40: 250.41464 | R40: -- | S40: -- | T40: -- | U40: SI | V40: 250.41464
I41: 13.097 | P41: 40 | Q41: -- | R41: -- | S41: -- | T41: -- | U41: =IF(F41="","","SI") -> 
C43: (²) | D43: P - PROGRAMADA ; F - FORZADA | Q43: =SUM(Q20:Q42) -> 4656.24544 | R43: =SUM(R20:R42) -> 1047.76 | S43: =SUM(S20:S42) -> 633.8948 | T43: =SUM(T20:T42) -> 0 | V43: =ROUND(SUM(V20:V42),2) -> 8990.1

Sheet DATO
A1: Mes | B1: Mes | C1: Dia | D1: Año
A2: enero | B2: 01 | C2: 31 | D2: 2006
A3: febrero | B3: 02 | C3: =IF(MOD(E14,4)=0,29,28) -> 29 | D3: =+D2+1 -> 2007
A4: marzo | B4: 03 | C4: 31 | D4: 2008
A5: abril | B5: 04 | C5: 30 | D5: 2009
A6: mayo | B6: 05 | C6: 31 | D6: 2010
A7: junio | B7: 06 | C7: 30 | D7: 2011
A8: julio | B8: 07 | C8: 31 | D8: 2012
A9: agosto | B9: 08 | C9: 31 | D9: 2013
A10: septiembre | B10: 09 | C10: 30 | D10: 2014
A11: octubre | B11: 10 | C11: 31 | D11: 2015
A12: noviembre | B12: 11 | C12: 30 | D12: 2016
A13: diciembre | B13: 12 | C13: 31 | I13: Total
A14: 11 | B14: 1 | C14: =CELL("CONTENIDO",OFFSET(A1,B14,0)) -> enero | D14: =CELL("CONTENIDO",OFFSET(C1,B14,0)) -> 31 | E14: =CELL("CONTENIDO",OFFSET(D1,A14,0)) -> 2016 | F14: ="Desde el 01 al " & D14 & " de " & C14 & " de " & E14 -> Desde el 01 al 31 de enero de 2016 | G14: =CELL("CONTENIDO",OFFSET(B1,B14,0)) -> 01 | H14: =RIGHT(E14,2) -> 16 | I14: B14
B15: ="\\rugor\files\Transporte\Transporte\AA PROCESO AUT ARCHIVOS J\TRANSBA\" &E14 -> \\rugor\files\Transporte\Transporte\AA PROCESO AUT ARCHIVOS J\TRANSBA\2016 | G15: ="J"&G14&H14&"TBA" -> J0116TBA
B16: ="\\rugor\files\Transporte\transporte\AA PROCESO AUT\INTERCAMBIO\" &H14&G14 -> \\rugor\files\Transporte\transporte\AA PROCESO AUT\INTERCAMBIO\1601
A17: Hoja | B17: FilaInicio | C17: FilasPlantilla | D17: Columnas | E17: NombreHoja | F17: OrigenDeDatos | G17: Col00 | H17: Col01 | I17: Col02 | J17: Col03 | K17: Col04 | L17: Col05 | M17: Col06 | N17: Col07 | O17: Col08 | P17: Col09 | Q17: Col10 | R17: Col11 | S17: Col12 | T17: Col13 | U17: Col14 | V17: Col15 | W17: FILHTOTAL | X17: COLHTOTAL | Y17: FILHCALC | Z17: COLHCALC | AA17: FILTRANSP | AB17: COLTRANSP | AC17: COL TSAL
A18: MODELO L | B18: 21 | C18: 20 | D18: 12 | E18: ="LI-" & $G$14 -> LI-01 | F18: TRANSBA_INDISPONIBILIDADES_LINEAS_TRANSBA.XLS | G18: 3 | H18: 5 | I18: 4 | J18: 6 | K18: 7 | L18: 8 | M18: 9 | N18: 11 | O18: 12 | P18: 15 | Q18: 0 | R18: 28 | S18: 16 | T18: 0 | U18: 0 | V18: 0 | W18: 18 | X18: 9 | Y18: 42 | Z18: 29 | AA18: 19 | AB18: 29 | AC18: 15
A19: MODELO T | B19: 22 | C19: 20 | D19: 13 | E19: ="T-" & $G$14 -> T-01 | F19: TRANSBA_INDISPONIBILIDADES_TRAFOS_TRANSBA.XLS | G19: 3 | H19: 5 | I19: 4 | J19: 6 | K19: 7 | L19: 8 | M19: 9 | N19: 11 | O19: 12 | P19: 15 | Q19: 16 | R19: 18 | S19: 28 | T19: 17 | U19: 0 | V19: 0 | W19: 22 | X19: 9 | Y19: 43 | Z19: 29 | AA19: 20 | AB19: 29 | AC19: 15
A20: MODELO S | B20: 22 | C20: 20 | D20: 10 | E20: ="SA-" & $G$14 -> SA-01 | F20: TRANSBA_INDISPONIBILIDADES_SALIDAS_TRANSBA.XLS | G20: 3 | H20: 5 | I20: 4 | J20: 6 | K20: 7 | L20: 8 | M20: 10 | N20: 11 | O20: 14 | P20: 15 | Q20: 21 | R20: 0 | S20: 0 | T20: 0 | U20: 0 | V20: 0 | W20: 24 | X20: 9 | Y20: 43 | Z20: 22 | AA20: 20 | AB20: 22 | AC20: 14
A21: MODELO R | B21: 21 | C21: 20 | D21: 12 | E21: ="RE-" & $G$14 -> RE-01 | F21: TRANSBA_INDISPONIBILIDADES_REACTIVOS_TRANSBA.XLS | G21: 3 | H21: 5 | I21: 4 | J21: 6 | K21: 7 | L21: 8 | M21: 9 | N21: 10 | O21: 12 | P21: 13 | Q21: 16 | R21: 17 | S21: 29 | T21: 18 | U21: 0 | V21: 0 | W21: 26 | X21: 9 | Y21: 43 | Z21: 30 | AA21: 20 | AB21: 30 | AC21: 16
A22: MODELO VST | B22: 19 | C22: 24 | D22: 4 | E22: ="CAUSAS-VST-" & $G$14 -> CAUSAS-VST-01 | F22: TRANSBA_CAUSAS_VST.XLS | G22: 3 | H22: 4 | I22: 5 | J22: 6 | K22: 7 | L22: 0 | M22: 0 | N22: 0 | O22: 0 | P22: 0 | Q22: 0 | R22: 0 | S22: 0 | T22: 0 | U22: 0 | V22: 0 | W22: 999 | X22: 999 | Y22: 0 | Z22: 0 | AA22: 0 | AB22: 0 | AC22: 0
